,Service Area Categorisation,Service Division Categorisation,Responsible Unit,Expenses Types,Detailed Expenses Type,Expense Code,Narrative,Payment Date,Transaction Number,Order ID,Amount,Capital/Revenue,Supplier Name,Supplier ID,Customer ID
Schools Total,School Group 2 � Pupil Capacity 144-314,MCC Schools,Dewstow Primary School,Supplies & Services,Communications and Computing,Postages,,20/09/2022,11050619,80087568,300,R,Royal Mail,234171,
"Commercial, Corporate & landlord Services",Property Services & Facilities Management,Resources,Reactive Maintenance,Premises,"Repairs, Alterations & Maintenance of Buildings",Building Improvements / Maintenance,,15/09/2022,11050921,90065076,654,R,Industrial Door Services,220527,
Finance & Business Devlopment,Attractions,MonLife Directorate,Caldicot Castle & Country Park,Supplies & Services,Communications and Computing,Postages,,20/09/2022,11051669,10126750,13.95,R,4imprint Direct Ltd,295399,
"Commercial, Corporate & landlord Services",Property Services & Facilities Management,Resources,Reactive Maintenance,Premises,"Repairs, Alterations & Maintenance of Buildings",Building Improvements / Maintenance,,20/09/2022,11050849,90064247,2500,R,SRS Public,293522,
Schools Total,School Group 7 � Pupil Capacity 501-1800,MCC Schools,King Henry VIII Comprehensive,Premises,"Repairs, Alterations & Maintenance of Buildings",Skip Hire,,26/09/2022,11053503,80088010,285,R,Thomas Waste Management Ltd,217964,
"Facilities, Fleet & Decarbonisation",Catering Services,Communities & Place,Schools Catering,Supplies & Services,Communications and Computing,Postages,,15/09/2022,11050307,10122844,1.14,R,Royal Mail,234171,
"Enterprise, Housing & Community Animation",General Fund Housing,Communities & Place,Homelessness,Supplies & Services,Services,Homelessness Bed & Breakfast Accomodation,,15/09/2022,11049589,10112478,585,R,Access Accommodations,293721,
Schools Total,School Group 7 � Pupil Capacity 501-1800,MCC Schools,King Henry VIII Comprehensive,Premises,"Repairs, Alterations & Maintenance of Buildings",Skip Hire,,20/09/2022,11051137,80088010,285,R,Thomas Waste Management Ltd,217964,
"Commercial, Corporate & landlord Services",Property Services & Facilities Management,Resources,Reactive Maintenance,Premises,"Repairs, Alterations & Maintenance of Buildings",Building Improvements / Maintenance,,08/09/2022,11049533,90064572,1336.95,R,Industrial Door Services,220527,
"Commercial, Corporate & landlord Services",Property Services & Facilities Management,Resources,Reactive Maintenance,Premises,"Repairs, Alterations & Maintenance of Buildings",Building Improvements / Maintenance,,08/09/2022,11049534,90064573,1591.95,R,Industrial Door Services,220527,
Finance & Business Devlopment,Attractions,MonLife Directorate,Old Station Tintern,Supplies & Services,Communications and Computing,Licences,,15/09/2022,11050701,10126557,502.67,R,PPL PRS LTD,2200725,
Schools Total,School Group 7 � Pupil Capacity 501-1800,MCC Schools,King Henry VIII Comprehensive,Premises,"Repairs, Alterations & Maintenance of Buildings",Skip Hire,,20/09/2022,11051135,80088010,285,R,Thomas Waste Management Ltd,217964,
Schools Total,School Group 7 � Pupil Capacity 501-1800,MCC Schools,King Henry VIII Comprehensive,Premises,"Repairs, Alterations & Maintenance of Buildings",Skip Hire,,20/09/2022,11051136,80088010,105,R,Thomas Waste Management Ltd,217964,
"Commercial, Corporate & landlord Services",Property Services & Facilities Management,Resources,External Clients,Premises,"Repairs, Alterations & Maintenance of Buildings",Building Improvements / Maintenance,,20/09/2022,11051624,90065504,185,R,Dale Sauna Ltd,285741,
"Commercial, Corporate & landlord Services",Property Services & Facilities Management,Resources,Reactive Maintenance,Premises,"Repairs, Alterations & Maintenance of Buildings",Building Improvements / Maintenance,,15/09/2022,11050788,90065351,54.47,R,EFS Systems (UK) Ltd,2200607,
"Commercial, Corporate & landlord Services",Property Services & Facilities Management,Resources,Reactive Maintenance,Premises,"Repairs, Alterations & Maintenance of Buildings",Building Improvements / Maintenance,,15/09/2022,11050789,90065352,43.41,R,EFS Systems (UK) Ltd,2200607,
"Commercial, Corporate & landlord Services",Property Services & Facilities Management,Resources,Reactive Maintenance,Premises,"Repairs, Alterations & Maintenance of Buildings",Building Improvements / Maintenance,,15/09/2022,11050790,90065378,65.18,R,EFS Systems (UK) Ltd,2200607,
"Commercial, Corporate & landlord Services",Property Services & Facilities Management,Resources,Reactive Maintenance,Premises,"Repairs, Alterations & Maintenance of Buildings",Building Improvements / Maintenance,,15/09/2022,11050792,90065380,61.5,R,EFS Systems (UK) Ltd,2200607,
"Commercial, Corporate & landlord Services",Property Services & Facilities Management,Resources,Reactive Maintenance,Premises,"Repairs, Alterations & Maintenance of Buildings",Building Improvements / Maintenance,,15/09/2022,11050793,90065381,61.5,R,EFS Systems (UK) Ltd,2200607,
"Commercial, Corporate & landlord Services",Property Services & Facilities Management,Resources,Reactive Maintenance,Premises,"Repairs, Alterations & Maintenance of Buildings",Building Improvements / Maintenance,,15/09/2022,11050794,90065382,64.51,R,EFS Systems (UK) Ltd,2200607,
Schools Total,School Group 2 � Pupil Capacity 144-314,MCC Schools,Rogiet Primary School,Supplies & Services,Grants and Subscriptions,Subscriptions,,15/09/2022,11050756,80088272,250,R,White Rose Maths,2202077,
Schools Total,SCHGRP3 � School Group 3 � Pupil Capacity 315-500,MCC Schools,Deri View Primary School,Supplies & Services,Communications and Computing,Postages,,15/09/2022,11050711,80079750,12.5,R,IKEA Business Accounts,291868,
Children Services,Children Services Teams,Social Care and Health,Transformation Team,Supplies & Services,"Equipment, Furniture and Materials",Marketing Materials,,15/09/2022,11050706,10126666,6725.15,R,Indeed Ireland Operations Ltd,2202800,
"Facilities, Fleet & Decarbonisation",Transport Department,Communities & Place,Transport,Transport,Contract Hire and Operating Leases,Vehicle Hire Charge,,01/09/2022,11045476,0,10,R,Days Rental,231329,
"Commercial, Corporate & landlord Services",Property Services & Facilities Management,Resources,Reactive Maintenance,Premises,"Repairs, Alterations & Maintenance of Buildings",Building Improvements / Maintenance,,20/09/2022,11050791,90065379,80.48,R,EFS Systems (UK) Ltd,2200607,
"Placemaking, Highways & Flooding",Development Management & Building Control,Communities & Place,Development Management,Supplies & Services,"Equipment, Furniture and Materials",Advertising,,20/09/2022,11050895,10126209,138.6,R,Newsquest Media Group,214546,
Schools Total,Schools,MCC Schools,Pupil Referral Unit,Supplies & Services,Grants and Subscriptions,Subscriptions,,21/09/2022,11050327,10126388,599.25,R,The Day News and Media Ltd,2204163,
"Enterprise, Housing & Community Animation",General Fund Housing,Communities & Place,Homelessness,Transport,Direct Transport Costs,Transport Costs,,21/09/2022,11051223,10126703,40,R,Dan's Taxis,2202479,
Children Services,Children Services Other,Social Care and Health,External Placements - CLA,Third Party Payments,Third Party,Nursing.,,21/09/2022,11050412,10123430,3049.58,R,Richmond Nursing Agency Ltd,2203303,
Schools Total,School Group 2 � Pupil Capacity 144-314,MCC Schools,Thornwell Primary School,Supplies & Services,Communications and Computing,Postages,,03/10/2022,11059077,80088409,6,R,ITeach Ltd,295460,
Schools Total,School Group 2 � Pupil Capacity 144-314,MCC Schools,Thornwell Primary School,Transport,Contract Hire and Operating Leases,Vehicle Hire Charge,,03/10/2022,11059079,80088417,2280,R,Grindles Coaches,299496,
Schools Total,School Group 7 � Pupil Capacity 501-1800,MCC Schools,King Henry VIII Comprehensive,Premises,"Repairs, Alterations & Maintenance of Buildings",Skip Hire,,03/10/2022,11059189,80088010,105,R,Thomas Waste Management Ltd,217964,
Schools Total,School Group 7 � Pupil Capacity 501-1800,MCC Schools,King Henry VIII Comprehensive,Premises,"Repairs, Alterations & Maintenance of Buildings",Skip Hire,,03/10/2022,11059189,80088010,285,R,Thomas Waste Management Ltd,217964,
Schools Total,School Group 2 � Pupil Capacity 144-314,MCC Schools,Thornwell Primary School,Supplies & Services,Grants and Subscriptions,Subscriptions,,03/10/2022,11059177,80087966,80,R,Amazon Payments UK Limited,2200305,
"Commercial, Corporate & landlord Services",Property Services & Facilities Management,Resources,Usk Accommodation,Premises,"Repairs, Alterations & Maintenance of Buildings",Building Improvements / Maintenance,,01/09/2022,11048549,90065371,30,R,Shield Security,2200377,
"Commercial, Corporate & landlord Services",Property Services & Facilities Management,Resources,Usk Accommodation,Premises,"Repairs, Alterations & Maintenance of Buildings",Building Improvements / Maintenance,,01/09/2022,11048548,90065370,60,R,Shield Security,2200377,
"Commercial, Corporate & landlord Services",Property Services & Facilities Management,Resources,Usk Accommodation,Premises,"Repairs, Alterations & Maintenance of Buildings",Building Improvements / Maintenance,,01/09/2022,11048028,90065018,50,R,G4S Secure Solutions (UK) Ltd,294399,
Schools Total,School Group 2 � Pupil Capacity 144-314,MCC Schools,Raglan CiW Primary School (VC),Supplies & Services,Grants and Subscriptions,Subscriptions,,06/09/2022,11029903,80087890,262.5,R,Education Shed,2202126,
"Enterprise, Housing & Community Animation",General Fund Housing,Communities & Place,Homelessness,Supplies & Services,Services,Homelessness Bed & Breakfast Accomodation,,26/09/2022,11053092,10123225,455,R,REDACTED PERSONAL DATA,2203190,
"Commercial, Corporate & landlord Services",Property Services & Facilities Management,Resources,Reactive Maintenance,Premises,"Repairs, Alterations & Maintenance of Buildings",Building Improvements / Maintenance,,20/09/2022,11050787,90065340,168.4,R,EFS Systems (UK) Ltd,2200607,
Schools Total,School Group 7 � Pupil Capacity 501-1800,MCC Schools,Monmouth Comprehensive,Supplies & Services,Services,Bank Charges,,26/09/2022,11051282,0,8.58,R,REDACTED DATA,297160,
Standards,Support Services,Children & Young People,Child Development Fund Grant,Transport,Direct Transport Costs,Transport Costs,,06/09/2022,11047949,10126329,4.19,R,Amazon  Payments UK Ltd (Punchout),2202048,
"Enterprise, Housing & Community Animation",Borough Theatre,Communities & Place,Borough Theatre General,Supplies & Services,"Equipment, Furniture and Materials",Promotions And Exhibitions,,06/09/2022,11049037,10126457,290.16,R,The Melville Centre for the Arts CIC,2201535,
Schools Total,School Group 2 � Pupil Capacity 144-314,MCC Schools,Raglan CiW Primary School (VC),Supplies & Services,Grants and Subscriptions,Subscriptions,,06/09/2022,11037993,80087672,512,R,Monmouth Diocesan Trust,2204069,
Children Services,Children Services Other,Social Care and Health,External Placements - CLA,Third Party Payments,Third Party,Nursing.,,08/09/2022,11047560,10124390,2265.9,R,ProHealthCare Limited,2203317,
"Leisure, Youth & Outdoor Adventure",Youth & Education,MonLife Directorate,Community Education Youth General,Transport,Contract Hire and Operating Leases,Vehicle Hire Charge,,08/09/2022,11048636,0,154.8,R,Maben Vehicle Hire,299931,
"Enterprise, Housing & Community Animation",General Fund Housing,Communities & Place,Homelessness,Supplies & Services,Services,Homelessness Bed & Breakfast Accomodation,,08/09/2022,11049723,10123709,4200,R,Cherryberry Lodges,2203896,
Children Services,Children Services Other,Social Care and Health,External Placements - CLA,Third Party Payments,Third Party,Nursing.,,08/09/2022,11047675,10123430,208.2,R,Richmond Nursing Agency Ltd,2203303,
Children Services,Children Services Other,Social Care and Health,External Placements - CLA,Third Party Payments,Third Party,Nursing.,,08/09/2022,11047676,10123430,1873.6,R,Richmond Nursing Agency Ltd,2203303,
Children Services,Children Services Other,Social Care and Health,External Placements - CLA,Third Party Payments,Third Party,Nursing.,,08/09/2022,11047677,10123430,2834.25,R,Richmond Nursing Agency Ltd,2203303,
Partnerships,Children Services Teams,Social Care and Health,Youth Offending Team,Supplies & Services,Communications and Computing,Postages,,20/09/2022,11051628,10122790,408.88,R,Quadient UK Ltd,200677,
Countryside & Culture,Tourism,MonLife Directorate,Tourism,Supplies & Services,"Equipment, Furniture and Materials",Marketing Materials,,05/09/2022,11048888,10126009,255,R,Height Studio Limited,294487,
"Leisure, Youth & Outdoor Adventure",Youth & Education,MonLife Directorate,Community Education Youth General,Supplies & Services,Grants and Subscriptions,Subscriptions,,26/09/2022,11052766,10126784,250,R,Cambium Sustainable Ltd,264186,
"Commercial, Corporate & landlord Services",Property Services & Facilities Management,Resources,Reactive Maintenance,Premises,"Repairs, Alterations & Maintenance of Buildings",Building Improvements / Maintenance,,07/09/2022,11049231,90064919,166.32,R,A.J Quinn Building Contractors Ltd,290506,
"Commercial, Corporate & landlord Services",Property Services & Facilities Management,Resources,Reactive Maintenance,Premises,"Repairs, Alterations & Maintenance of Buildings",Building Improvements / Maintenance,,07/09/2022,11049232,90065082,116.29,R,A.J Quinn Building Contractors Ltd,290506,
Public Protection,"Registrations B, D and M",Social Care and Health,"Registrations B,D & M",Supplies & Services,Grants and Subscriptions,Subscriptions,,07/09/2022,11049259,10126433,400,R,Local Registration Services Association,290525,
Schools Total,SCHGRP3 � School Group 3 � Pupil Capacity 315-500,MCC Schools,Deri View Primary School,Premises,"Repairs, Alterations & Maintenance of Buildings",Skip Hire,,13/09/2022,11050516,80088263,287.5,R,Thomas Waste Management Ltd,217964,
Standards,Support Services,Children & Young People,Child Development Fund Grant,Transport,Direct Transport Costs,Transport Costs,,22/09/2022,11051217,10126721,2.51,R,Amazon  Payments UK Ltd (Punchout),2202048,
"Commercial, Corporate & landlord Services",Property Services & Facilities Management,Resources,Reactive Maintenance,Premises,"Repairs, Alterations & Maintenance of Buildings",Building Improvements / Maintenance,,07/09/2022,11049225,90064895,881.66,R,A.J Quinn Building Contractors Ltd,290506,
"Commercial, Corporate & landlord Services",Property Services & Facilities Management,Resources,Reactive Maintenance,Premises,"Repairs, Alterations & Maintenance of Buildings",Building Improvements / Maintenance,,07/09/2022,11049226,90065262,46,R,A.J Quinn Building Contractors Ltd,290506,
"Commercial, Corporate & landlord Services",Property Services & Facilities Management,Resources,Reactive Maintenance,Premises,"Repairs, Alterations & Maintenance of Buildings",Building Improvements / Maintenance,,07/09/2022,11049228,90064539,247.5,R,A.J Quinn Building Contractors Ltd,290506,
"Commercial, Corporate & landlord Services",Property Services & Facilities Management,Resources,Reactive Maintenance,Premises,"Repairs, Alterations & Maintenance of Buildings",Building Improvements / Maintenance,,07/09/2022,11049229,90064634,745,R,Drain Rod Ltd,200354,
"Commercial, Corporate & landlord Services",Property Services & Facilities Management,Resources,Reactive Maintenance,Premises,"Repairs, Alterations & Maintenance of Buildings",Building Improvements / Maintenance,,07/09/2022,11049230,90064869,725.98,R,A.J Quinn Building Contractors Ltd,290506,
Schools Total,School Group 2 � Pupil Capacity 144-314,MCC Schools,Llantilio Pertholey CiW Primary School (VC),Supplies & Services,Communications and Computing,Computer Licences,,07/09/2022,11040748,80086975,109.68,R,SRS Public,293522,
Schools Total,School Group 7 � Pupil Capacity 501-1800,MCC Schools,King Henry VIII Comprehensive,Premises,Catering,Catering Equipment,,07/09/2022,11041148,80087930,43.9,R,Compass Services (UK) Limited,294553,
"Commercial, Corporate & landlord Services",Property Services & Facilities Management,Resources,External Clients,Premises,"Repairs, Alterations & Maintenance of Buildings",Building Improvements / Maintenance,,07/09/2022,11049504,90065263,125,R,Newport City Council,211127,
"Commercial, Corporate & landlord Services",Property Services & Facilities Management,Resources,Reactive Maintenance,Premises,"Repairs, Alterations & Maintenance of Buildings",Building Improvements / Maintenance,,07/09/2022,11049463,90065216,41.98,R,EFS Systems (UK) Ltd,2200607,
"Commercial, Corporate & landlord Services",Property Services & Facilities Management,Resources,Reactive Maintenance,Premises,"Repairs, Alterations & Maintenance of Buildings",Building Improvements / Maintenance,,07/09/2022,11049464,90065228,36.75,R,EFS Systems (UK) Ltd,2200607,
Schools Total,School Group 2 � Pupil Capacity 144-314,MCC Schools,Goytre Fawr Primary School,Transport,Direct Transport Costs,Transport Costs,,07/09/2022,11049298,80088101,4.16,R,Amazon  Payments UK Ltd (Punchout),2202048,
Community Care,Community Care Team,Social Care and Health,Monmouth Adult Team,Third Party Payments,Third Party,Residential.,,16/09/2022,318121,0,3240,R,Milkwood Care Ltd T/A Ganarew House,211461,
Community Care,Community Care Team,Social Care and Health,Monmouth Adult Team,Third Party Payments,Third Party,Residential.,,16/09/2022,318121,0,2400,R,Keegan's Court Care Services Limited,2201124,
Capital Division,Capital Dept,Capital,Capital Programme,Supplies & Services,"Equipment, Furniture and Materials",Marketing Materials,,20/09/2022,11051233,10125182,750,C,Alliance Leisure Services Ltd,267377,
Community Care,Community Care Team,Social Care and Health,Monmouth Adult Team,Third Party Payments,Third Party,Residential.,,16/09/2022,318121,0,2400,R,Keegan's Court Care Services Limited,2201124,
Community Care,Community Care Team,Social Care and Health,Monmouth Adult Team,Third Party Payments,Third Party,Residential.,,16/09/2022,318121,0,171.42,R,Keegan's Court Care Services Limited,2201124,
Community Care,Community Care Team,Social Care and Health,Monmouth Adult Team,Third Party Payments,Third Party,Residential.,,16/09/2022,318121,0,14810.71,R,Gibraltar Care Village Limited t/a PSP Healthcare Limited,278814,
Community Care,Community Care Team,Social Care and Health,Monmouth Adult Team,Third Party Payments,Third Party,Residential.,,16/09/2022,318121,0,4692,R,Milkwood Care Limited T/A The Lodge at Castleford,294629,
Community Care,Community Care Team,Social Care and Health,Monmouth Adult Team,Third Party Payments,Third Party,Residential.,,16/09/2022,318121,0,2902.67,R,"Faithfull House, Lilian Faithfull Homes",299925,
Community Care,Community Care Team,Social Care and Health,Monmouth Adult Team,Third Party Payments,Third Party,Residential.,,16/09/2022,318121,0,3107.14,R,Whitchurch House,211463,
Community Care,ADULT DISABILITY SERVICES,Social Care and Health,CLDT,Third Party Payments,Third Party,Residential.,,16/09/2022,318121,0,7999.2,R,Eriskay Residential Care,211373,
Community Care,ADULT DISABILITY SERVICES,Social Care and Health,CLDT,Third Party Payments,Third Party,Residential.,,16/09/2022,318121,0,7627.32,R,Carningli Trust,212167,
Community Care,ADULT DISABILITY SERVICES,Social Care and Health,Resettlement,Third Party Payments,Third Party,Residential.,,16/09/2022,318121,0,8254.4,R,Eriskay Residential Care,211373,
Community Care,Community Care Team,Social Care and Health,Mental Health Care Team,Third Party Payments,Third Party,Residential.,,16/09/2022,318121,0,2605.71,R,Dormy Care - Foxhunters,2202162,
Community Care,Community Care Team,Social Care and Health,Mental Health Care Team,Third Party Payments,Third Party,Residential.,,16/09/2022,318121,0,3240,R,Milkwood Care Ltd T/A Ganarew House,211461,
Community Care,Community Care Team,Social Care and Health,Mental Health Care Team,Third Party Payments,Third Party,Residential.,,16/09/2022,318121,0,6564.02,R,Care 4 U Ltd,293257,
Community Care,Community Care Team,Social Care and Health,Mental Health Care Team,Third Party Payments,Third Party,Residential.,,16/09/2022,318121,0,3240,R,Milkwood Care Ltd T/A Ganarew House,211461,
Standards,Support Services,Children & Young People,Child Development Fund Grant,Transport,Direct Transport Costs,Transport Costs,,22/09/2022,11051225,10126721,1.68,R,Amazon  Payments UK Ltd (Punchout),2202048,
"Leisure, Youth & Outdoor Adventure",Youth & Education,MonLife Directorate,Gilwern,Supplies & Services,Grants and Subscriptions,Subscriptions,,22/09/2022,11051660,10126758,118,R,P&P Pest Control,200833,
Community Care,INTEGRATED CARE FUND,Social Care and Health,Health Transformation,Supplies & Services,"Equipment, Furniture and Materials",Advertising,,05/09/2022,11041242,10122452,300,R,Newsquest Media Group,214546,
Community Care,INTEGRATED CARE FUND,Social Care and Health,Health Transformation,Supplies & Services,"Equipment, Furniture and Materials",Advertising,,05/09/2022,11041243,10122452,300,R,Newsquest Media Group,214546,
Community Care,ADULT DISABILITY SERVICES,Social Care and Health,Resettlement,Third Party Payments,Third Party,Residential.,,16/09/2022,318121,0,6593.84,R,Eriskay Residential Care,211373,
Community Care,ADULT DISABILITY SERVICES,Social Care and Health,Resettlement,Third Party Payments,Third Party,Residential.,,16/09/2022,318121,0,5590.64,R,The Drive,249693,
Community Care,ADULT DISABILITY SERVICES,Social Care and Health,CLDT,Third Party Payments,Third Party,Residential.,,16/09/2022,318121,0,6396.32,R,The Drive,249693,
Community Care,ADULT DISABILITY SERVICES,Social Care and Health,CLDT,Third Party Payments,Third Party,Residential.,,16/09/2022,318121,0,6148.55,R,Eriskay Residential Care,211373,
Community Care,ADULT DISABILITY SERVICES,Social Care and Health,CLDT,Third Party Payments,Third Party,Residential.,,16/09/2022,318121,0,5590.64,R,The Drive,249693,
Community Care,ADULT DISABILITY SERVICES,Social Care and Health,CLDT,Third Party Payments,Third Party,Residential.,,16/09/2022,318121,0,7666.08,R,Eriskay Residential Care,211373,
Community Care,ADULT DISABILITY SERVICES,Social Care and Health,CLDT,Third Party Payments,Third Party,Residential.,,16/09/2022,318121,0,6456.14,R,The Drive,249693,
Community Care,Community Care Team,Social Care and Health,Monmouth Adult Team,Third Party Payments,Third Party,Residential.,,16/09/2022,318121,0,3298.11,R,"Faithfull House, Lilian Faithfull Homes",299925,
Community Care,Community Care Team,Social Care and Health,Monmouth Adult Team,Third Party Payments,Third Party,Residential.,,16/09/2022,318121,0,3240,R,Milkwood Care Ltd T/A Ganarew House,211461,
Community Care,Community Care Team,Social Care and Health,Monmouth Adult Team,Third Party Payments,Third Party,Residential.,,16/09/2022,318121,0,2900,R,Milkwood Care Ltd T/A Ganarew House,211461,
Community Care,Community Care Team,Social Care and Health,Chepstow Adult Team,Third Party Payments,Third Party,Residential.,,16/09/2022,318121,0,3172.12,R,Willowbrook House Nursing Home,287107,
Community Care,Community Care Team,Social Care and Health,Mental Health Care Team,Third Party Payments,Third Party,Residential.,,16/09/2022,318121,0,3240,R,Milkwood Care Ltd T/A Ganarew House,211461,
Community Care,Community Care Team,Social Care and Health,Mental Health Care Team,Third Party Payments,Third Party,Residential.,,16/09/2022,318121,0,2222.28,R,Charnwood Country Residence,298047,
Community Care,Community Care Team,Social Care and Health,Mental Health Care Team,Third Party Payments,Third Party,Residential.,,16/09/2022,318121,0,3240,R,Milkwood Care Ltd T/A Ganarew House,211461,
Community Care,Community Care Team,Social Care and Health,Mental Health Care Team,Third Party Payments,Third Party,Residential.,,16/09/2022,318121,0,5402.84,R,Redlands (Priory Group),294631,
Community Care,Community Care Team,Social Care and Health,Mental Health Care Team,Third Party Payments,Third Party,Residential.,,16/09/2022,318121,0,3240,R,Milkwood Care Ltd T/A Ganarew House,211461,
Community Care,Community Care Team,Social Care and Health,Mental Health Care Team,Third Party Payments,Third Party,Residential.,,16/09/2022,318121,0,4400,R,Shaw healthcare (Group) Ltd,294626,
Community Care,Community Care Team,Social Care and Health,Mental Health Care Team,Third Party Payments,Third Party,Residential.,,16/09/2022,318121,0,3017.1,R,Dulas Court,285798,
"Leisure, Youth & Outdoor Adventure",Youth & Education,MonLife Directorate,Gilwern,Supplies & Services,Grants and Subscriptions,Subscriptions,,22/09/2022,11051671,10126757,159,R,Tv Licensing,200054,
Schools Total,SCHGRP3 � School Group 3 � Pupil Capacity 315-500,MCC Schools,Deri View Primary School,Premises,"Repairs, Alterations & Maintenance of Buildings",Skip Hire,,13/09/2022,11050505,80088264,197.5,R,Thomas Waste Management Ltd,217964,
Schools Total,School Group 7 � Pupil Capacity 501-1800,MCC Schools,King Henry VIII Comprehensive,Premises,Catering,Catering Equipment,,07/09/2022,11041148,80087930,1723.05,R,Compass Services (UK) Limited,294553,
Schools Total,School Group 7 � Pupil Capacity 501-1800,MCC Schools,King Henry VIII Comprehensive,Premises,Catering,Catering Equipment,,07/09/2022,11041148,80087930,6339.2,R,Compass Services (UK) Limited,294553,
Schools Total,School Group 7 � Pupil Capacity 501-1800,MCC Schools,King Henry VIII Comprehensive,Premises,Catering,Catering Equipment,,07/09/2022,11041148,80087930,-6339.2,R,Compass Services (UK) Limited,294553,
Schools Total,School Group 2 � Pupil Capacity 144-314,MCC Schools,Osbaston CiW Primary School (VC),Supplies & Services,Grants and Subscriptions,Subscriptions,,23/09/2022,11052887,80088129,520,R,Schoop Limited,297305,
Schools Total,SCHGRP3 � School Group 3 � Pupil Capacity 315-500,MCC Schools,Undy Primary School,Supplies & Services,Grants and Subscriptions,Subscriptions,,23/09/2022,11052372,80088400,265,R,Oxford University Press,209341,
Schools Total,SCHGRP3 � School Group 3 � Pupil Capacity 315-500,MCC Schools,Undy Primary School,Supplies & Services,Grants and Subscriptions,Subscriptions,,23/09/2022,11052373,80088401,230,R,Oxford University Press,209341,
Schools Total,SCHGRP3 � School Group 3 � Pupil Capacity 315-500,MCC Schools,Undy Primary School,Premises,Cleaning and Domestic Supplies,Premises Pest Control,,23/09/2022,11051142,80088036,90,R,P&P Pest Control,200833,
Schools Total,School Group 2 � Pupil Capacity 144-314,MCC Schools,Thornwell Primary School,Supplies & Services,"Printing, Stationery and General Office Expenses",Stationery,,20/09/2022,11052335,80086601,16.5,R,RM Educational Resources Ltd,213173,
Schools Total,School Group 2 � Pupil Capacity 144-314,MCC Schools,Thornwell Primary School,Supplies & Services,"Printing, Stationery and General Office Expenses",Stationery,,20/09/2022,11052337,80086601,47,R,RM Educational Resources Ltd,213173,
Schools Total,School Group 2 � Pupil Capacity 144-314,MCC Schools,Ysgol Gymraeg Y Fenni,Supplies & Services,"Printing, Stationery and General Office Expenses",Stationery,,20/09/2022,11050930,80088274,32.85,R,Hope Education Ltd,200969,
Schools Total,School Group 2 � Pupil Capacity 144-314,MCC Schools,Ysgol Gymraeg Y Fenni,Supplies & Services,"Printing, Stationery and General Office Expenses",Stationery,,20/09/2022,11050930,80088274,11.05,R,Hope Education Ltd,200969,
Schools Total,School Group 2 � Pupil Capacity 144-314,MCC Schools,Ysgol Gymraeg Y Fenni,Supplies & Services,"Printing, Stationery and General Office Expenses",Stationery,,20/09/2022,11050930,80088274,9.25,R,Hope Education Ltd,200969,
Neighbourhood Services,Waste and Street Services,Communities & Place,Grounds,Supplies & Services,"Equipment, Furniture and Materials",Materials & Consumables.,,15/09/2022,11047999,10122690,63.92,R,Robert Price Builders Merchants Ltd,200061,
Schools Total,School Group 2 � Pupil Capacity 144-314,MCC Schools,Castle Park Primary School,Supplies & Services,"Printing, Stationery and General Office Expenses",Photocopying.,,25/10/2022,11050634,0,-328.26,R,PEAC UK Finance,2203768,
Schools Total,School Group 2 � Pupil Capacity 144-314,MCC Schools,Thornwell Primary School,Premises,Cleaning and Domestic Supplies,Contract Cleaning - Premises (Direct),,20/09/2022,11050822,80087976,208.19,R,Elis UK Ltd,221365,
Schools Total,School Group 2 � Pupil Capacity 144-314,MCC Schools,Thornwell Primary School,Premises,Cleaning and Domestic Supplies,Contract Cleaning - Premises (Direct),,20/09/2022,11050822,80087976,19.01,R,Elis UK Ltd,221365,
Schools Total,School Group 2 � Pupil Capacity 144-314,MCC Schools,Thornwell Primary School,Premises,Cleaning and Domestic Supplies,Contract Cleaning - Premises (Direct),,20/09/2022,11050856,0,-17.3,R,Elis UK Ltd,221365,
Neighbourhood Services,Waste and Street Services,Communities & Place,Grounds,Supplies & Services,"Equipment, Furniture and Materials",Materials & Consumables.,,15/09/2022,11048557,10122690,72.04,R,Robert Price Builders Merchants Ltd,200061,
Neighbourhood Services,Waste and Street Services,Communities & Place,Grounds,Supplies & Services,"Equipment, Furniture and Materials",Materials & Consumables.,,15/09/2022,11048558,10122690,13.94,R,Robert Price Builders Merchants Ltd,200061,
Neighbourhood Services,Waste and Street Services,Communities & Place,Grounds,Supplies & Services,"Equipment, Furniture and Materials",Materials & Consumables.,,15/09/2022,11048559,10122690,55.69,R,Robert Price Builders Merchants Ltd,200061,
Neighbourhood Services,Waste and Street Services,Communities & Place,Grounds,Supplies & Services,"Equipment, Furniture and Materials",Materials & Consumables.,,15/09/2022,11049001,10122690,48.64,R,Robert Price Builders Merchants Ltd,200061,
Neighbourhood Services,Waste and Street Services,Communities & Place,Grounds,Supplies & Services,"Equipment, Furniture and Materials",Materials & Consumables.,,21/09/2022,11050949,0,-33,R,Robert Price Builders Merchants Ltd,200061,
Standards,Inclusions,Children & Young People,Community Focused Schools Childcare Grant,Supplies & Services,Grants and Subscriptions,Grants Payable,,20/09/2022,11051127,10126734,2500,R,Little Explorers Nursery,2204137,
Children Services,Children Services Other,Social Care and Health,External Placements - CLA,Third Party Payments,Third Party,Residential.,,21/09/2022,11049526,10123431,18821.43,R,SICS Gofal Cymru CYF,2201636,
Children Services,Children Services Other,Social Care and Health,External Placements - CLA,Third Party Payments,Third Party,Residential.,,21/09/2022,11049466,10121925,23427.14,R,SICS Gofal Cymru CYF,2201636,
Community Care,ADULT DISABILITY SERVICES,Social Care and Health,CLDT,Third Party Payments,Third Party,Personal Care.,,21/09/2022,11052409,0,3405.8,R,Pobl Care & Support,266673,
Neighbourhood Services,Waste and Street Services,Communities & Place,Fitting Shop Grounds,Supplies & Services,"Equipment, Furniture and Materials",Materials & Consumables.,,26/09/2022,11052652,10122741,52.32,R,Mon & Border Motor Factors Ltd,200544,
Schools Total,School Group 2 � Pupil Capacity 144-314,MCC Schools,Rogiet Primary School,Supplies & Services,"Printing, Stationery and General Office Expenses",Photocopying.,,20/09/2022,11052369,80088397,174.72,R,Konica Minolta Bus. Solutions (UK) Ltd,200231,
Schools Total,School Group 2 � Pupil Capacity 144-314,MCC Schools,Rogiet Primary School,Supplies & Services,"Printing, Stationery and General Office Expenses",Photocopying.,,20/09/2022,11052370,80088397,430.83,R,Konica Minolta Bus. Solutions (UK) Ltd,200231,
Schools Total,School Group 2 � Pupil Capacity 144-314,MCC Schools,Castle Park Primary School,Supplies & Services,"Printing, Stationery and General Office Expenses",Photocopying.,,15/09/2022,11050618,80087143,1415.53,R,PEAC UK Finance,2203768,
Schools Total,School Group 2 � Pupil Capacity 144-314,MCC Schools,Castle Park Primary School,Supplies & Services,"Printing, Stationery and General Office Expenses",Photocopying.,,15/09/2022,11050618,80087143,-23.53,R,PEAC UK Finance,2203768,
Schools Total,School Group 2 � Pupil Capacity 144-314,MCC Schools,Castle Park Primary School,Supplies & Services,"Printing, Stationery and General Office Expenses",Photocopying.,,15/09/2022,11050618,80087143,23.53,R,PEAC UK Finance,2203768,
Schools Total,School Group 2 � Pupil Capacity 144-314,MCC Schools,Pembroke Primary School,Supplies & Services,"Equipment, Furniture and Materials",Materials & Consumables.,,15/09/2022,11050617,80086950,1542.88,R,IKEA Business Accounts,291868,
Schools Total,School Group 7 � Pupil Capacity 501-1800,MCC Schools,Monmouth Comprehensive,Supplies & Services,"Printing, Stationery and General Office Expenses",Stationery,,07/09/2022,11049324,0,-17.62,R,Amazon Payments UK Limited,2200305,
Neighbourhood Services,Highways,Communities & Place,Overhead - SWTRA / External,Supplies & Services,"Equipment, Furniture and Materials",Rental / Hire,,20/09/2022,11048941,0,352.8,R,Chepstow Construction Equipment Ltd,288634,
Schools Total,School Group 2 � Pupil Capacity 144-314,MCC Schools,Raglan CiW Primary School (VC),Supplies & Services,"Equipment, Furniture and Materials",Materials & Consumables.,,08/09/2022,11049491,80086786,11.45,R,ESPO,273847,
Schools Total,SCHGRP3 � School Group 3 � Pupil Capacity 315-500,MCC Schools,Deri View Primary School,Supplies & Services,"Equipment, Furniture and Materials",Materials & Consumables.,,14/09/2022,11050525,80086879,480,R,Therapeutic Activities Group,2203093,
"Commercial, Corporate & landlord Services",Asset Management,Resources,MCC Markets,Premises,"Repairs, Alterations & Maintenance of Buildings",Building Improvements / Maintenance,,15/09/2022,11050797,90065634,255,R,REDACTED PERSONAL DATA,298503,
Adult Services,Direct Care Residential,Social Care and Health,Severn View Residential,Supplies & Services,"Equipment, Furniture and Materials",Cleaning Materials.,,20/09/2022,11049793,10123163,24.43,R,Newhall Janitorial Ltd,200912,
Schools Total,School Group 1 � Pupil Capacity 1-143,MCC Schools,Ysgol Gymraeg Y Ffin,Supplies & Services,"Equipment, Furniture and Materials",Materials & Consumables.,,20/09/2022,11049709,80084589,323.99,R,Hope Education Ltd,200969,
Adult Services,Direct Care Residential,Social Care and Health,Severn View Residential,Supplies & Services,"Equipment, Furniture and Materials",Provisions.,,20/09/2022,11049343,10122955,328.32,R,Raglan Dairy Ltd,296621,
Adult Services,Direct Care Residential,Social Care and Health,Severn View Residential,Supplies & Services,"Equipment, Furniture and Materials",Provisions.,,20/09/2022,11049350,10123164,69.99,R,Total Produce(Cardiff),284131,
Adult Services,Direct Care Residential,Social Care and Health,Severn View Residential,Supplies & Services,"Equipment, Furniture and Materials",Provisions.,,20/09/2022,11049351,10123164,101.99,R,Total Produce(Cardiff),284131,
Adult Services,Direct Care Residential,Social Care and Health,Severn View Residential,Supplies & Services,"Equipment, Furniture and Materials",Provisions.,,20/09/2022,11049721,10123221,440.5,R,Castell Howell Foods Ltd,261117,
Adult Services,Direct Care Residential,Social Care and Health,Severn View Residential,Supplies & Services,"Equipment, Furniture and Materials",Provisions.,,20/09/2022,11049721,10123221,360.44,R,Castell Howell Foods Ltd,261117,
Adult Services,Direct Care Residential,Social Care and Health,Severn View Residential,Supplies & Services,"Equipment, Furniture and Materials",Provisions.,,20/09/2022,11049721,10123221,-360.44,R,Castell Howell Foods Ltd,261117,
Adult Services,Direct Care Residential,Social Care and Health,Severn View Residential,Supplies & Services,"Equipment, Furniture and Materials",Provisions.,,20/09/2022,11049794,10123164,120.81,R,Total Produce(Cardiff),284131,
Adult Services,Direct Care Residential,Social Care and Health,Severn View Residential,Supplies & Services,"Equipment, Furniture and Materials",Provisions.,,20/09/2022,11050134,10123221,574.57,R,Castell Howell Foods Ltd,261117,
Adult Services,Direct Care Residential,Social Care and Health,Severn View Residential,Supplies & Services,"Equipment, Furniture and Materials",Provisions.,,20/09/2022,11050134,10123221,508.25,R,Castell Howell Foods Ltd,261117,
Adult Services,Direct Care Residential,Social Care and Health,Severn View Residential,Supplies & Services,"Equipment, Furniture and Materials",Provisions.,,20/09/2022,11050134,10123221,-508.25,R,Castell Howell Foods Ltd,261117,
Schools Total,School Group 7 � Pupil Capacity 501-1800,MCC Schools,Caldicot School,Supplies & Services,"Equipment, Furniture and Materials",Materials & Consumables.,,14/09/2022,11050521,80088196,63.8,R,WF Education Group Ltd T/A Timstar,221968,
Schools Total,School Group 7 � Pupil Capacity 501-1800,MCC Schools,Caldicot School,Supplies & Services,"Equipment, Furniture and Materials",Materials & Consumables.,,14/09/2022,11050521,80088196,15.95,R,WF Education Group Ltd T/A Timstar,221968,
Schools Total,School Group 7 � Pupil Capacity 501-1800,MCC Schools,Caldicot School,Supplies & Services,"Equipment, Furniture and Materials",Materials & Consumables.,,14/09/2022,11050521,80088196,9.9,R,WF Education Group Ltd T/A Timstar,221968,
Schools Total,School Group 7 � Pupil Capacity 501-1800,MCC Schools,Caldicot School,Supplies & Services,"Equipment, Furniture and Materials",Materials & Consumables.,,14/09/2022,11050521,80088196,7.2,R,WF Education Group Ltd T/A Timstar,221968,
Schools Total,School Group 7 � Pupil Capacity 501-1800,MCC Schools,Caldicot School,Supplies & Services,"Equipment, Furniture and Materials",Materials & Consumables.,,14/09/2022,11050521,80088196,19.9,R,WF Education Group Ltd T/A Timstar,221968,
Schools Total,School Group 7 � Pupil Capacity 501-1800,MCC Schools,Caldicot School,Supplies & Services,"Equipment, Furniture and Materials",Materials & Consumables.,,14/09/2022,11050521,80088196,20.4,R,WF Education Group Ltd T/A Timstar,221968,
Schools Total,School Group 7 � Pupil Capacity 501-1800,MCC Schools,Caldicot School,Supplies & Services,"Equipment, Furniture and Materials",Materials & Consumables.,,14/09/2022,11050526,80087527,34.18,R,Inivos Scientific Ltd,208879,
Schools Total,School Group 1 � Pupil Capacity 1-143,MCC Schools,Llanvihangel Crucorney Primary School,Supplies & Services,"Equipment, Furniture and Materials",Materials & Consumables.,,20/09/2022,11052344,80087678,6.42,R,RM Educational Resources Ltd,213173,
"Facilities, Fleet & Decarbonisation",Catering Services,Communities & Place,Schools Catering,Supplies & Services,"Equipment, Furniture and Materials",Materials & Consumables.,,26/09/2022,11052660,10122779,245.51,R,Newhall Janitorial Ltd,200912,
"Facilities, Fleet & Decarbonisation",Catering Services,Communities & Place,Schools Catering,Supplies & Services,"Equipment, Furniture and Materials",Materials & Consumables.,,26/09/2022,11052661,10122779,14.62,R,Newhall Janitorial Ltd,200912,
Schools Total,School Group 7 � Pupil Capacity 501-1800,MCC Schools,Caldicot School,Supplies & Services,Communications and Computing,Software Annual,,26/09/2022,11052943,80088473,3375,R,The PIXL Club Ltd,298502,
"Facilities, Fleet & Decarbonisation",Home to School Transport Dept,Communities & Place,SEN Post 16 Travel,Transport,Contract Hire and Operating Leases,PTU Vehicle Contracts,,16/09/2022,11051071,0,3405.75,R,CDS Hire Limited,2200007,
"Facilities, Fleet & Decarbonisation",Home to School Transport Dept,Communities & Place,School Transport � External,Transport,Contract Hire and Operating Leases,PTU Vehicle Contracts,,16/09/2022,11051086,0,1560.67,R,Phillips Transport Ltd,208760,
"Facilities, Fleet & Decarbonisation",Home to School Transport Dept,Communities & Place,School Transport � External,Transport,Contract Hire and Operating Leases,PTU Vehicle Contracts,,16/09/2022,11051086,0,10432.43,R,Phillips Transport Ltd,208760,
"Facilities, Fleet & Decarbonisation",Home to School Transport Dept,Communities & Place,School Transport � External,Transport,Contract Hire and Operating Leases,PTU Vehicle Contracts,,16/09/2022,11051086,0,8332.94,R,Phillips Transport Ltd,208760,
"Facilities, Fleet & Decarbonisation",Home to School Transport Dept,Communities & Place,School Transport � External,Transport,Contract Hire and Operating Leases,PTU Vehicle Contracts,,16/09/2022,11051087,0,1737.54,R,Platinum Private Hire,2200994,
"Facilities, Fleet & Decarbonisation",Home to School Transport Dept,Communities & Place,School Transport � External,Transport,Contract Hire and Operating Leases,PTU Vehicle Contracts,,16/09/2022,11051088,0,1834.72,R,Rees Motor (Travel),208778,
"Facilities, Fleet & Decarbonisation",Home to School Transport Dept,Communities & Place,School Transport � External,Transport,Contract Hire and Operating Leases,PTU Vehicle Contracts,,16/09/2022,11051071,0,2730.8,R,CDS Hire Limited,2200007,
Community Care,INTEGRATED CARE FUND,Social Care and Health,COVID19 Carers Payments,Third Party Payments,Third Party,Third party payments NOT relating to goods or services,,03/10/2022,318179,0,772.23,R,Gibraltar Care Village Limited t/a PSP Healthcare Limited,278814,
Community Care,INTEGRATED CARE FUND,Social Care and Health,COVID19 Carers Payments,Third Party Payments,Third Party,Third party payments NOT relating to goods or services,,03/10/2022,318179,0,2565.62,R,Helping Hands,2200390,
Community Care,INTEGRATED CARE FUND,Social Care and Health,COVID19 Carers Payments,Third Party Payments,Third Party,Third party payments NOT relating to goods or services,,03/10/2022,318179,0,279.88,R,Craegmoor SYI South Wales,299124,
Community Care,INTEGRATED CARE FUND,Social Care and Health,COVID19 Carers Payments,Third Party Payments,Third Party,Third party payments NOT relating to goods or services,,03/10/2022,318179,0,272.39,R,Parade Residential Home,225421,
Community Care,INTEGRATED CARE FUND,Social Care and Health,COVID19 Carers Payments,Third Party Payments,Third Party,Third party payments NOT relating to goods or services,,03/10/2022,318179,0,113.31,R,Penpergwm House Ltd,235140,
Community Care,INTEGRATED CARE FUND,Social Care and Health,COVID19 Carers Payments,Third Party Payments,Third Party,Third party payments NOT relating to goods or services,,03/10/2022,318179,0,139.98,R,Eriskay Residential Care,211373,
Community Care,INTEGRATED CARE FUND,Social Care and Health,COVID19 Carers Payments,Third Party Payments,Third Party,Third party payments NOT relating to goods or services,,03/10/2022,318179,0,225.29,R,Elysium Healthcare LTD,2202630,
Community Care,INTEGRATED CARE FUND,Social Care and Health,COVID19 Carers Payments,Third Party Payments,Third Party,Third party payments NOT relating to goods or services,,03/10/2022,318179,0,279.88,R,Step-a-side,2201997,
Community Care,INTEGRATED CARE FUND,Social Care and Health,COVID19 Carers Payments,Third Party Payments,Third Party,Third party payments NOT relating to goods or services,,03/10/2022,318179,0,14265.87,R,Home Instead Senior Care,2202031,
Community Care,INTEGRATED CARE FUND,Social Care and Health,COVID19 Carers Payments,Third Party Payments,Third Party,Third party payments NOT relating to goods or services,,03/10/2022,318179,0,65073.6,R,Achieve Together Limited,239606,
Community Care,Community Care Team,Social Care and Health,Adult Transformation,Third Party Payments,Third Party,Third party payments NOT relating to goods or services,,03/10/2022,318180,0,635.85,R,Parade Residential Home,225421,
Community Care,Community Care Team,Social Care and Health,Adult Transformation,Third Party Payments,Third Party,Third party payments NOT relating to goods or services,,03/10/2022,318180,0,9831.54,R,Crick Nursing Home,210961,
Community Care,Community Care Team,Social Care and Health,Adult Transformation,Third Party Payments,Third Party,Third party payments NOT relating to goods or services,,03/10/2022,318180,0,1234.53,R,EVH Ltd t/a Castle Court Residential Home,211361,
Community Care,Community Care Team,Social Care and Health,Adult Transformation,Third Party Payments,Third Party,Third party payments NOT relating to goods or services,,03/10/2022,318180,0,685.32,R,Home Instead Senior Care,2202031,
Community Care,Community Care Team,Social Care and Health,Adult Transformation,Third Party Payments,Third Party,Third party payments NOT relating to goods or services,,03/10/2022,318180,0,511.63,R,Craegmoor SYI South Wales,299124,
"Facilities, Fleet & Decarbonisation",Home to School Transport Dept,Communities & Place,School Transport � External,Transport,Contract Hire and Operating Leases,PTU Vehicle Contracts,,16/09/2022,11051071,0,5038.4,R,CDS Hire Limited,2200007,
"Facilities, Fleet & Decarbonisation",Home to School Transport Dept,Communities & Place,School Transport � External,Transport,Contract Hire and Operating Leases,PTU Vehicle Contracts,,16/09/2022,11051071,0,879.84,R,CDS Hire Limited,2200007,
"Facilities, Fleet & Decarbonisation",Home to School Transport Dept,Communities & Place,School Transport � External,Transport,Contract Hire and Operating Leases,PTU Vehicle Contracts,,16/09/2022,11051088,0,3696.52,R,Rees Motor (Travel),208778,
"Facilities, Fleet & Decarbonisation",Home to School Transport Dept,Communities & Place,School Transport � External,Transport,Contract Hire and Operating Leases,PTU Vehicle Contracts,,16/09/2022,11051089,0,2228.57,R,Rideout Travel,291339,
"Facilities, Fleet & Decarbonisation",Home to School Transport Dept,Communities & Place,School Transport � External,Transport,Contract Hire and Operating Leases,PTU Vehicle Contracts,,16/09/2022,11051089,0,1848.34,R,Rideout Travel,291339,
"Facilities, Fleet & Decarbonisation",Home to School Transport Dept,Communities & Place,School Transport � External,Transport,Contract Hire and Operating Leases,PTU Vehicle Contracts,,16/09/2022,11051090,0,1943.09,R,RST TAXIS,2203423,
"Facilities, Fleet & Decarbonisation",Home to School Transport Dept,Communities & Place,School Transport � External,Transport,Contract Hire and Operating Leases,PTU Vehicle Contracts,,16/09/2022,11051090,0,1220.9,R,RST TAXIS,2203423,
"Facilities, Fleet & Decarbonisation",Home to School Transport Dept,Communities & Place,School Transport � External,Transport,Contract Hire and Operating Leases,PTU Vehicle Contracts,,16/09/2022,11051072,0,5954.7,R,Celtic Minibuses Ltd,275707,
"Facilities, Fleet & Decarbonisation",Home to School Transport Dept,Communities & Place,School Transport � External,Transport,Contract Hire and Operating Leases,PTU Vehicle Contracts,,16/09/2022,11051072,0,2405.6,R,Celtic Minibuses Ltd,275707,
Schools Total,School Group 7 � Pupil Capacity 501-1800,MCC Schools,Monmouth Comprehensive,Supplies & Services,Communications and Computing,IT Hardware,,24/10/2022,11050281,0,-54,R,A2z Computing,215611,
Schools Total,School Group 2 � Pupil Capacity 144-314,MCC Schools,Goytre Fawr Primary School,Supplies & Services,"Equipment, Furniture and Materials",Materials & Consumables.,,20/09/2022,11050926,80088260,9.78,R,Hope Education Ltd,200969,
Schools Total,School Group 2 � Pupil Capacity 144-314,MCC Schools,Goytre Fawr Primary School,Supplies & Services,"Equipment, Furniture and Materials",Materials & Consumables.,,20/09/2022,11050927,80088260,2.9,R,Hope Education Ltd,200969,
Community Care,ADULT DISABILITY SERVICES,Social Care and Health,CLDT,Supplies & Services,Communications and Computing,IT Hardware,,20/09/2022,11050894,10126123,86.01,R,SRS Public,293522,
Schools Total,School Group 7 � Pupil Capacity 501-1800,MCC Schools,Caldicot School,Supplies & Services,"Equipment, Furniture and Materials",Materials & Consumables.,,14/09/2022,11050526,80087527,7.5,R,Inivos Scientific Ltd,208879,
"Facilities, Fleet & Decarbonisation",Transport Department,Communities & Place,Transport,Supplies & Services,"Equipment, Furniture and Materials",Materials & Consumables.,,15/09/2022,11045469,0,375,R,Fast Fluid Power Ltd,256182,
"Facilities, Fleet & Decarbonisation",Transport Department,Communities & Place,Transport,Supplies & Services,"Equipment, Furniture and Materials",Materials & Consumables.,,08/09/2022,11049676,0,54.12,R,Mon & Border Motor Factors Ltd,200544,
"Facilities, Fleet & Decarbonisation",Transport Department,Communities & Place,Transport,Supplies & Services,"Equipment, Furniture and Materials",Materials & Consumables.,,08/09/2022,11049678,0,880,R,Tennants Distribution Limited,296571,
"Facilities, Fleet & Decarbonisation",Transport Department,Communities & Place,Transport,Supplies & Services,"Equipment, Furniture and Materials",Materials & Consumables.,,08/09/2022,11049679,0,880,R,Tennants Distribution Limited,296571,
Finance & Business Devlopment,Attractions,MonLife Directorate,Old Station Tintern,Supplies & Services,Communications and Computing,IT Software,,15/09/2022,11050695,10124559,40,R,Ecr Concepts Ltd,204942,
Schools Total,School Group 7 � Pupil Capacity 501-1800,MCC Schools,Caldicot School,Supplies & Services,Catering,Catering,,15/09/2022,11050520,80088128,21.57,R,Nisbets,218815,
Schools Total,School Group 7 � Pupil Capacity 501-1800,MCC Schools,Caldicot School,Supplies & Services,Catering,Catering,,15/09/2022,11050520,80088128,6,R,Nisbets,218815,
"Facilities, Fleet & Decarbonisation",Home to School Transport Dept,Communities & Place,School Transport � External,Transport,Contract Hire and Operating Leases,PTU Vehicle Contracts,,16/09/2022,11051105,0,3428.33,R,REDACTED PERSONAL DATA,2204164,
"Facilities, Fleet & Decarbonisation",Home to School Transport Dept,Communities & Place,School Transport � External,Transport,Contract Hire and Operating Leases,PTU Vehicle Contracts,,16/09/2022,11051104,0,3400,R,Jocks Journeys,2201174,
"Facilities, Fleet & Decarbonisation",Home to School Transport Dept,Communities & Place,School Transport � External,Transport,Contract Hire and Operating Leases,PTU Vehicle Contracts,,16/09/2022,11051103,0,1246.67,R,Veezu Ltd,271060,
"Facilities, Fleet & Decarbonisation",Home to School Transport Dept,Communities & Place,School Transport � External,Transport,Contract Hire and Operating Leases,PTU Vehicle Contracts,,16/09/2022,11051080,0,5653.16,R,K & M Taxis Executive Hire Ltd,292600,
"Facilities, Fleet & Decarbonisation",Home to School Transport Dept,Communities & Place,School Transport � External,Transport,Contract Hire and Operating Leases,PTU Vehicle Contracts,,16/09/2022,11051100,0,1786.47,R,REDACTED PERSONAL DATA,293630,
"Facilities, Fleet & Decarbonisation",Home to School Transport Dept,Communities & Place,School Transport � External,Transport,Contract Hire and Operating Leases,PTU Vehicle Contracts,,16/09/2022,11051098,0,6073.12,R,Zahid Limited,2201052,
"Facilities, Fleet & Decarbonisation",Home to School Transport Dept,Communities & Place,School Transport � External,Transport,Contract Hire and Operating Leases,PTU Vehicle Contracts,,16/09/2022,11051097,0,4572.46,R,REDACTED PERSONAL DATA,211668,
"Facilities, Fleet & Decarbonisation",Home to School Transport Dept,Communities & Place,School Transport � External,Transport,Contract Hire and Operating Leases,PTU Vehicle Contracts,,16/09/2022,11051078,0,1750.88,R,Jay's Taxis,297719,
"Facilities, Fleet & Decarbonisation",Home to School Transport Dept,Communities & Place,School Transport � External,Transport,Contract Hire and Operating Leases,PTU Vehicle Contracts,,16/09/2022,11051078,0,2239.01,R,Jay's Taxis,297719,
"Facilities, Fleet & Decarbonisation",Home to School Transport Dept,Communities & Place,School Transport � External,Transport,Contract Hire and Operating Leases,PTU Vehicle Contracts,,16/09/2022,11051077,0,2034.94,R,Jaks Minibus Hire,2203334,
"Facilities, Fleet & Decarbonisation",Home to School Transport Dept,Communities & Place,School Transport � External,Transport,Contract Hire and Operating Leases,PTU Vehicle Contracts,,16/09/2022,11051097,0,6991.6,R,REDACTED PERSONAL DATA,211668,
"Facilities, Fleet & Decarbonisation",Home to School Transport Dept,Communities & Place,School Transport � External,Transport,Contract Hire and Operating Leases,PTU Vehicle Contracts,,16/09/2022,11051096,0,2252.4,R,REDACTED PERSONAL DATA,205711,
"Facilities, Fleet & Decarbonisation",Home to School Transport Dept,Communities & Place,SEN Post 16 Travel,Transport,Contract Hire and Operating Leases,PTU Vehicle Contracts,,16/09/2022,11051099,0,2493.33,R,Seren Executive Travel,2203333,
"Facilities, Fleet & Decarbonisation",Home to School Transport Dept,Communities & Place,SEN Post 16 Travel,Transport,Contract Hire and Operating Leases,PTU Vehicle Contracts,,16/09/2022,11051080,0,5036.58,R,K & M Taxis Executive Hire Ltd,292600,
"Facilities, Fleet & Decarbonisation",Home to School Transport Dept,Communities & Place,SEN Post 16 Travel,Transport,Contract Hire and Operating Leases,PTU Vehicle Contracts,,16/09/2022,11051075,0,1433.33,R,G & H Minibus,228882,
"Facilities, Fleet & Decarbonisation",Home to School Transport Dept,Communities & Place,School Transport � External,Transport,Contract Hire and Operating Leases,PTU Vehicle Contracts,,16/09/2022,11051096,0,1900.86,R,REDACTED PERSONAL DATA,205711,
"Facilities, Fleet & Decarbonisation",Home to School Transport Dept,Communities & Place,School Transport � External,Transport,Contract Hire and Operating Leases,PTU Vehicle Contracts,,16/09/2022,11051096,0,8024.95,R,REDACTED PERSONAL DATA,205711,
"Facilities, Fleet & Decarbonisation",Home to School Transport Dept,Communities & Place,School Transport � External,Transport,Contract Hire and Operating Leases,PTU Vehicle Contracts,,16/09/2022,11051095,0,13822.11,R,Varteg Motors Ltd,253188,
"Facilities, Fleet & Decarbonisation",Home to School Transport Dept,Communities & Place,School Transport � External,Transport,Contract Hire and Operating Leases,PTU Vehicle Contracts,,16/09/2022,11051095,0,21560.95,R,Varteg Motors Ltd,253188,
"Facilities, Fleet & Decarbonisation",Home to School Transport Dept,Communities & Place,School Transport � External,Transport,Contract Hire and Operating Leases,PTU Vehicle Contracts,,16/09/2022,11051076,0,2664.75,R,REDACTED PERSONAL DATA,211246,
"Facilities, Fleet & Decarbonisation",Home to School Transport Dept,Communities & Place,School Transport � External,Transport,Contract Hire and Operating Leases,PTU Vehicle Contracts,,16/09/2022,11051076,0,4014.43,R,REDACTED PERSONAL DATA,211246,
"Facilities, Fleet & Decarbonisation",Home to School Transport Dept,Communities & Place,School Transport � External,Transport,Contract Hire and Operating Leases,PTU Vehicle Contracts,,16/09/2022,11051075,0,1716.67,R,G & H Minibus,228882,
"Facilities, Fleet & Decarbonisation",Home to School Transport Dept,Communities & Place,School Transport � External,Transport,Contract Hire and Operating Leases,PTU Vehicle Contracts,,16/09/2022,11051075,0,1213.16,R,G & H Minibus,228882,
"Facilities, Fleet & Decarbonisation",Home to School Transport Dept,Communities & Place,School Transport � External,Transport,Contract Hire and Operating Leases,PTU Vehicle Contracts,,16/09/2022,11051094,0,2015.39,R,Usk Cabs,2201007,
"Facilities, Fleet & Decarbonisation",Home to School Transport Dept,Communities & Place,School Transport � External,Transport,Contract Hire and Operating Leases,PTU Vehicle Contracts,,16/09/2022,11051093,0,2362.5,R,S&T Tanner T/A Cwtch Cars,2201005,
"Facilities, Fleet & Decarbonisation",Home to School Transport Dept,Communities & Place,School Transport � External,Transport,Contract Hire and Operating Leases,PTU Vehicle Contracts,,16/09/2022,11051092,0,971.62,R,Terrys Taxis,298574,
"Facilities, Fleet & Decarbonisation",Home to School Transport Dept,Communities & Place,School Transport � External,Transport,Contract Hire and Operating Leases,PTU Vehicle Contracts,,16/09/2022,11051092,0,1500.36,R,Terrys Taxis,298574,
"Facilities, Fleet & Decarbonisation",Home to School Transport Dept,Communities & Place,School Transport � External,Transport,Contract Hire and Operating Leases,PTU Vehicle Contracts,,16/09/2022,11051091,0,1324.58,R,REDACTED PERSONAL DATA,230952,
Community Care,Community Care Team,Social Care and Health,Adult Transformation,Third Party Payments,Third Party,Third party payments NOT relating to goods or services,,03/10/2022,318180,0,339.13,R,Craegmoor SYI South Wales,299124,
Community Care,Community Care Team,Social Care and Health,Adult Transformation,Third Party Payments,Third Party,Third party payments NOT relating to goods or services,,03/10/2022,318180,0,290.85,R,Grove Care Partnership Limited (Consensus),230551,
Schools Total,School Group 2 � Pupil Capacity 144-314,MCC Schools,Thornwell Primary School,Supplies & Services,"Equipment, Furniture and Materials",Materials & Consumables.,,20/09/2022,11050823,80088012,8.33,R,Borderlands Outdoor Instruction Ltd,299161,
Adult Services,Direct Care Residential,Social Care and Health,Severn View Residential,Supplies & Services,"Equipment, Furniture and Materials",Provisions.,,20/09/2022,11050688,10123221,300.5,R,Castell Howell Foods Ltd,261117,
Adult Services,Direct Care Residential,Social Care and Health,Severn View Residential,Supplies & Services,"Equipment, Furniture and Materials",Provisions.,,20/09/2022,11050688,10123221,269.4,R,Castell Howell Foods Ltd,261117,
Adult Services,Direct Care Residential,Social Care and Health,Severn View Residential,Supplies & Services,"Equipment, Furniture and Materials",Provisions.,,20/09/2022,11050688,10123221,-269.4,R,Castell Howell Foods Ltd,261117,
Schools Total,School Group 2 � Pupil Capacity 144-314,MCC Schools,Dewstow Primary School,Supplies & Services,"Equipment, Furniture and Materials",Materials & Consumables.,,20/09/2022,11050829,80088270,119.96,R,RM Educational Resources Ltd,213173,
Schools Total,School Group 2 � Pupil Capacity 144-314,MCC Schools,Llanfoist Fawr Primary School,Premises,"Repairs, Alterations & Maintenance of Buildings",Premises Repairs And Maintenance,,20/09/2022,11050834,80088305,41.66,R,Baileys DIY ltd Abergavenny,295630,
Schools Total,School Group 2 � Pupil Capacity 144-314,MCC Schools,Llanfoist Fawr Primary School,Premises,"Repairs, Alterations & Maintenance of Buildings",Premises Repairs And Maintenance,,20/09/2022,11050834,80088305,3.74,R,Baileys DIY ltd Abergavenny,295630,
Children Services,Children Services Teams,Social Care and Health,Long Term Support Team,Third Party Payments,Third Party,Individual Needs,,15/09/2022,11050420,10125316,503.18,R,Richmond Nursing Agency Ltd,2203303,
Adult Services,Direct Care Residential,Social Care and Health,Mardy Park,Supplies & Services,"Equipment, Furniture and Materials",Provisions.,,15/09/2022,11050317,10124472,199.07,R,Castell Howell Foods Ltd,261117,
Adult Services,Direct Care Residential,Social Care and Health,Mardy Park,Supplies & Services,"Equipment, Furniture and Materials",Provisions.,,15/09/2022,11050317,10124472,-65.97,R,Castell Howell Foods Ltd,261117,
Adult Services,Direct Care Residential,Social Care and Health,Mardy Park,Supplies & Services,"Equipment, Furniture and Materials",Provisions.,,15/09/2022,11050317,10124472,65.97,R,Castell Howell Foods Ltd,261117,
"Commercial, Corporate & landlord Services",Property Services & Facilities Management,Resources,Gwent Police Collaboration,Premises,"Repairs, Alterations & Maintenance of Buildings",Building Improvements / Maintenance,,15/09/2022,11050394,760019527,120,R,Industrial Door Services,220527,
"Commercial, Corporate & landlord Services",Property Services & Facilities Management,Resources,Gwent Police Collaboration,Premises,"Repairs, Alterations & Maintenance of Buildings",Building Improvements / Maintenance,,15/09/2022,11050396,760019825,195,R,Industrial Door Services,220527,
"Commercial, Corporate & landlord Services",Property Services & Facilities Management,Resources,Gwent Police Collaboration,Premises,"Repairs, Alterations & Maintenance of Buildings",Building Improvements / Maintenance,,15/09/2022,11050399,760019687,5983.17,R,Industrial Door Services,220527,
Schools Total,School Group 2 � Pupil Capacity 144-314,MCC Schools,Dewstow Primary School,Employees,Direct Employee Expenses,Agency Staff,,15/09/2022,11048618,80085518,2551.92,R,Teaching 4 Wales Ltd,267637,
"Facilities, Fleet & Decarbonisation",Transport Department,Communities & Place,Transport,Transport,Direct Transport Costs,Vehicle Collision Damage Costs,,08/09/2022,11049507,0,170.26,R,Malvern Tyres (Wholesale) Ltd,296236,
"Facilities, Fleet & Decarbonisation",Transport Department,Communities & Place,Transport,Transport,Direct Transport Costs,Tyres And Tubes,,08/09/2022,11049508,0,510.78,R,Malvern Tyres (Wholesale) Ltd,296236,
"Facilities, Fleet & Decarbonisation",Transport Department,Communities & Place,Transport,Transport,Direct Transport Costs,Tyres And Tubes,,08/09/2022,11049509,0,189.4,R,Malvern Tyres (Wholesale) Ltd,296236,
"Facilities, Fleet & Decarbonisation",Transport Department,Communities & Place,Transport,Transport,Direct Transport Costs,Tyres And Tubes,,08/09/2022,11049510,0,1033.25,R,Malvern Tyres (Wholesale) Ltd,296236,
"Facilities, Fleet & Decarbonisation",Transport Department,Communities & Place,Transport,Transport,Direct Transport Costs,Tyres And Tubes,,08/09/2022,11049511,0,585.75,R,Malvern Tyres (Wholesale) Ltd,296236,
"Facilities, Fleet & Decarbonisation",Transport Department,Communities & Place,Transport,Transport,Direct Transport Costs,Tyres And Tubes,,08/09/2022,11049512,0,413.52,R,Malvern Tyres (Wholesale) Ltd,296236,
"Facilities, Fleet & Decarbonisation",Transport Department,Communities & Place,Transport,Transport,Direct Transport Costs,Spare Parts,,26/09/2022,11051164,0,80.55,R,Euro Commercials (South Wales) L,241642,
"Facilities, Fleet & Decarbonisation",Transport Department,Communities & Place,Transport,Transport,Direct Transport Costs,Spare Parts,,26/09/2022,11051174,0,18.66,R,Mon & Border Motor Factors Ltd,200544,
"Facilities, Fleet & Decarbonisation",Transport Department,Communities & Place,Transport,Transport,Direct Transport Costs,Tyres And Tubes,,05/09/2022,11044524,0,665.8,R,"Exhaust, Tyres & Batteries (Worcester) Ltd",286529,
"Facilities, Fleet & Decarbonisation",Transport Department,Communities & Place,Transport,Transport,Direct Transport Costs,Tyres And Tubes,,05/09/2022,11044525,0,1670,R,"Exhaust, Tyres & Batteries (Worcester) Ltd",286529,
"Facilities, Fleet & Decarbonisation",Transport Department,Communities & Place,Transport,Transport,Direct Transport Costs,Tyres And Tubes,,05/09/2022,11044526,0,550,R,"Exhaust, Tyres & Batteries (Worcester) Ltd",286529,
"Facilities, Fleet & Decarbonisation",Transport Department,Communities & Place,Transport,Transport,Direct Transport Costs,Tyres And Tubes,,05/09/2022,11044527,0,83.9,R,"Exhaust, Tyres & Batteries (Worcester) Ltd",286529,
Children Services,Children Services Teams,Social Care and Health,Long Term Support Team,Supplies & Services,Services,Professional And Specialist Fees,,15/09/2022,11041492,10125780,26.08,R,Security Plus Limited,299661,
"Facilities, Fleet & Decarbonisation",Home to School Transport Dept,Communities & Place,Special Educational Needs,Transport,Contract Hire and Operating Leases,PTU Vehicle Contracts,,16/09/2022,11051090,0,3055,R,RST TAXIS,2203423,
"Facilities, Fleet & Decarbonisation",Home to School Transport Dept,Communities & Place,Special Educational Needs,Transport,Contract Hire and Operating Leases,PTU Vehicle Contracts,,16/09/2022,11051072,0,2700.34,R,Celtic Minibuses Ltd,275707,
"Policy, Scrutiny & Customer Service",Ukraine,Chief Executive's Unit,Ukraine Support,Transport,Contract Hire and Operating Leases,PTU Vehicle Contracts,,16/09/2022,11051070,0,1912.39,R,C and P Transport,2200258,
Adult Services,Direct Care Residential,Social Care and Health,Mardy Park,Third Party Payments,Third Party,Third party payments NOT relating to goods or services,,20/09/2022,10994421,10114826,8532.6,R,Aneurin Bevan Local Health Board,289812,
"Enterprise, Housing & Community Animation",General Fund Housing,Communities & Place,Homelessness,Supplies & Services,Services,Storage Fees,,21/09/2022,11051122,10126704,325,R,Highmore Facilities Ltd,2200953,
Schools Total,School Group 2 � Pupil Capacity 144-314,MCC Schools,Thornwell Primary School,Supplies & Services,Services,Professional And Specialist Fees,,20/09/2022,11050823,80088012,116.67,R,Borderlands Outdoor Instruction Ltd,299161,
Schools Total,School Group 2 � Pupil Capacity 144-314,MCC Schools,Dewstow Primary School,Supplies & Services,Services,Professional And Specialist Fees,,15/09/2022,11050117,80088203,1250,R,Juniper Education Services Limited,296749,
Capital Division,Capital Dept,Capital,Capital Programme,Supplies & Services,Services,Professional And Specialist Fees,,15/09/2022,11049481,10125054,13268.24,C,Amey Consulting,2201751,
"Facilities, Fleet & Decarbonisation",Transport Department,Communities & Place,Transport,Transport,Direct Transport Costs,Spare Parts,,05/09/2022,11044629,0,40.5,R,Euro Commercials (South Wales) L,241642,
"Facilities, Fleet & Decarbonisation",Transport Department,Communities & Place,Transport,Transport,Direct Transport Costs,Spare Parts,,05/09/2022,11044630,0,446.5,R,Euro Commercials (South Wales) L,241642,
"Facilities, Fleet & Decarbonisation",Transport Department,Communities & Place,Transport,Transport,Direct Transport Costs,Spare Parts,,05/09/2022,11044631,0,281.7,R,Euro Commercials (South Wales) L,241642,
"Facilities, Fleet & Decarbonisation",Home to School Transport Dept,Communities & Place,Special Educational Needs,Transport,Contract Hire and Operating Leases,PTU Vehicle Contracts,,16/09/2022,11051073,0,1557.27,R,REDACTED PERSONAL DATA,2201000,
"Facilities, Fleet & Decarbonisation",Home to School Transport Dept,Communities & Place,Special Educational Needs,Transport,Contract Hire and Operating Leases,PTU Vehicle Contracts,,16/09/2022,11051074,0,1418.33,R,Fast Cars of Abergavenny,2200064,
"Facilities, Fleet & Decarbonisation",Home to School Transport Dept,Communities & Place,Special Educational Needs,Transport,Contract Hire and Operating Leases,PTU Vehicle Contracts,,16/09/2022,11051094,0,3428.33,R,Usk Cabs,2201007,
"Facilities, Fleet & Decarbonisation",Home to School Transport Dept,Communities & Place,Special Educational Needs,Transport,Contract Hire and Operating Leases,PTU Vehicle Contracts,,16/09/2022,11051075,0,4292.96,R,G & H Minibus,228882,
"Facilities, Fleet & Decarbonisation",Transport Department,Communities & Place,Transport,Transport,Direct Transport Costs,Vehicle Collision Damage Costs,,08/09/2022,11049515,0,85.13,R,Malvern Tyres (Wholesale) Ltd,296236,
"Facilities, Fleet & Decarbonisation",Transport Department,Communities & Place,Transport,Transport,Direct Transport Costs,Spare Parts,,08/09/2022,11049517,0,555.38,R,Malvern Tyres (Wholesale) Ltd,296236,
"Facilities, Fleet & Decarbonisation",Transport Department,Communities & Place,Transport,Transport,Direct Transport Costs,Tyres And Tubes,,08/09/2022,11049513,0,396.23,R,Malvern Tyres (Wholesale) Ltd,296236,
"Facilities, Fleet & Decarbonisation",Transport Department,Communities & Place,Transport,Transport,Direct Transport Costs,Tyres And Tubes,,08/09/2022,11049514,0,396.23,R,Malvern Tyres (Wholesale) Ltd,296236,
"Facilities, Fleet & Decarbonisation",Transport Department,Communities & Place,Transport,Transport,Direct Transport Costs,Tyres And Tubes,,08/09/2022,11049516,0,58.29,R,Malvern Tyres (Wholesale) Ltd,296236,
"Facilities, Fleet & Decarbonisation",Transport Department,Communities & Place,Transport,Transport,Direct Transport Costs,Tyres And Tubes,,08/09/2022,11049518,0,421.23,R,Malvern Tyres (Wholesale) Ltd,296236,
Schools Total,School Group 2 � Pupil Capacity 144-314,MCC Schools,Rogiet Primary School,Supplies & Services,"Equipment, Furniture and Materials",Materials & Consumables.,,21/09/2022,11052361,80088271,2.15,R,ESPO,273847,
Schools Total,School Group 2 � Pupil Capacity 144-314,MCC Schools,Osbaston CiW Primary School (VC),Employees,Direct Employee Expenses,Agency Staff,,20/09/2022,11052366,80088378,1096,R,TeacherActive,297314,
Schools Total,SCHGRP3 � School Group 3 � Pupil Capacity 315-500,MCC Schools,Deri View Primary School,Supplies & Services,"Equipment, Furniture and Materials",Materials & Consumables.,,14/09/2022,11050527,80087887,1120,R,Therapeutic Activities Group,2203093,
Schools Total,School Group 2 � Pupil Capacity 144-314,MCC Schools,Rogiet Primary School,Supplies & Services,"Equipment, Furniture and Materials",Materials & Consumables.,,15/09/2022,11049881,80087822,1292.84,R,ESPO,273847,
Schools Total,School Group 2 � Pupil Capacity 144-314,MCC Schools,Raglan CiW Primary School (VC),Supplies & Services,"Equipment, Furniture and Materials",Materials & Consumables.,,08/09/2022,11049544,80087463,27.4,R,ESPO,273847,
Schools Total,School Group 2 � Pupil Capacity 144-314,MCC Schools,Raglan CiW Primary School (VC),Supplies & Services,"Equipment, Furniture and Materials",Materials & Consumables.,,08/09/2022,11049544,80087463,24.6,R,ESPO,273847,
Schools Total,School Group 2 � Pupil Capacity 144-314,MCC Schools,Raglan CiW Primary School (VC),Supplies & Services,"Equipment, Furniture and Materials",Materials & Consumables.,,08/09/2022,11049544,80087463,56.5,R,ESPO,273847,
Schools Total,School Group 2 � Pupil Capacity 144-314,MCC Schools,Raglan CiW Primary School (VC),Supplies & Services,"Equipment, Furniture and Materials",Materials & Consumables.,,08/09/2022,11049544,80087463,25.65,R,ESPO,273847,
Schools Total,School Group 2 � Pupil Capacity 144-314,MCC Schools,Raglan CiW Primary School (VC),Supplies & Services,"Equipment, Furniture and Materials",Materials & Consumables.,,08/09/2022,11049544,80087463,7.52,R,ESPO,273847,
Schools Total,School Group 2 � Pupil Capacity 144-314,MCC Schools,Raglan CiW Primary School (VC),Supplies & Services,"Equipment, Furniture and Materials",Materials & Consumables.,,08/09/2022,11049546,80087563,7.85,R,ESPO,273847,
Schools Total,School Group 2 � Pupil Capacity 144-314,MCC Schools,Raglan CiW Primary School (VC),Supplies & Services,"Equipment, Furniture and Materials",Materials & Consumables.,,08/09/2022,11049546,80087563,23.8,R,ESPO,273847,
Schools Total,School Group 2 � Pupil Capacity 144-314,MCC Schools,Raglan CiW Primary School (VC),Supplies & Services,"Equipment, Furniture and Materials",Materials & Consumables.,,08/09/2022,11049546,80087563,2.02,R,ESPO,273847,
Schools Total,School Group 2 � Pupil Capacity 144-314,MCC Schools,Raglan CiW Primary School (VC),Supplies & Services,"Equipment, Furniture and Materials",Materials & Consumables.,,08/09/2022,11049546,80087563,22.3,R,ESPO,273847,
Schools Total,School Group 2 � Pupil Capacity 144-314,MCC Schools,Raglan CiW Primary School (VC),Supplies & Services,"Equipment, Furniture and Materials",Materials & Consumables.,,08/09/2022,11049546,80087563,20.6,R,ESPO,273847,
Schools Total,School Group 2 � Pupil Capacity 144-314,MCC Schools,Raglan CiW Primary School (VC),Supplies & Services,"Equipment, Furniture and Materials",Materials & Consumables.,,08/09/2022,11049546,80087563,16,R,ESPO,273847,
Schools Total,School Group 2 � Pupil Capacity 144-314,MCC Schools,Raglan CiW Primary School (VC),Supplies & Services,"Equipment, Furniture and Materials",Materials & Consumables.,,08/09/2022,11049547,80087565,1.63,R,ESPO,273847,
Schools Total,School Group 2 � Pupil Capacity 144-314,MCC Schools,Raglan CiW Primary School (VC),Supplies & Services,"Equipment, Furniture and Materials",Materials & Consumables.,,08/09/2022,11049547,80087565,1.95,R,ESPO,273847,
Schools Total,School Group 2 � Pupil Capacity 144-314,MCC Schools,Raglan CiW Primary School (VC),Supplies & Services,"Equipment, Furniture and Materials",Materials & Consumables.,,08/09/2022,11049547,80087565,2.95,R,ESPO,273847,
Schools Total,School Group 2 � Pupil Capacity 144-314,MCC Schools,Raglan CiW Primary School (VC),Supplies & Services,"Equipment, Furniture and Materials",Materials & Consumables.,,08/09/2022,11049547,80087565,2.67,R,ESPO,273847,
"Leisure, Youth & Outdoor Adventure",Youth & Education,MonLife Directorate,Community Education Youth General,Supplies & Services,"Equipment, Furniture and Materials",Equipment Purchases,,15/09/2022,11049310,0,-328.2,R,Chapple & Jenkins Ltd,294643,
"Leisure, Youth & Outdoor Adventure",Youth & Education,MonLife Directorate,Community Education Youth General,Supplies & Services,"Equipment, Furniture and Materials",Equipment Purchases,,15/09/2022,11049310,0,-253.25,R,Chapple & Jenkins Ltd,294643,
"Leisure, Youth & Outdoor Adventure",Youth & Education,MonLife Directorate,Community Education Youth General,Supplies & Services,"Equipment, Furniture and Materials",Equipment Purchases,,15/09/2022,11049310,0,253.25,R,Chapple & Jenkins Ltd,294643,
Adult Services,Direct Care Residential,Social Care and Health,Severn View Residential,Supplies & Services,"Equipment, Furniture and Materials",Provisions.,,14/09/2022,11049316,0,-3.04,R,Total Produce(Cardiff),284131,
Neighbourhood Services,Waste and Street Services,Communities & Place,Fitting Shop Grounds,Supplies & Services,"Equipment, Furniture and Materials",Materials & Consumables.,,15/09/2022,11050553,10122802,46.25,R,Fasteners & Engineering Suppliers Ltd,296712,
Neighbourhood Services,Waste and Street Services,Communities & Place,Fitting Shop Grounds,Supplies & Services,"Equipment, Furniture and Materials",Materials & Consumables.,,15/09/2022,11050554,10122802,27.55,R,Fasteners & Engineering Suppliers Ltd,296712,
Community Care,ADULT DISABILITY SERVICES,Social Care and Health,CLDT,Third Party Payments,Third Party,Personal Care.,,20/09/2022,318129,0,443.19,R,REDACTED PERSONAL DATA,211560,
Community Care,ADULT DISABILITY SERVICES,Social Care and Health,CLDT,Third Party Payments,Third Party,Personal Care.,,20/09/2022,318129,0,443.19,R,REDACTED PERSONAL DATA,295175,
Community Care,ADULT DISABILITY SERVICES,Social Care and Health,CLDT,Third Party Payments,Third Party,Personal Care.,,20/09/2022,318129,0,443.19,R,REDACTED PERSONAL DATA,298177,
Community Care,ADULT DISABILITY SERVICES,Social Care and Health,CLDT,Third Party Payments,Third Party,Personal Care.,,20/09/2022,318129,0,309.16,R,REDACTED PERSONAL DATA,299170,
Community Care,ADULT DISABILITY SERVICES,Social Care and Health,CLDT,Third Party Payments,Third Party,Personal Care.,,20/09/2022,318129,0,443.19,R,REDACTED PERSONAL DATA,2201665,
Community Care,ADULT DISABILITY SERVICES,Social Care and Health,CLDT,Third Party Payments,Third Party,Personal Care.,,20/09/2022,318129,0,309.16,R,REDACTED PERSONAL DATA,2203008,
Community Care,ADULT DISABILITY SERVICES,Social Care and Health,CLDT,Third Party Payments,Third Party,Personal Care.,,20/09/2022,318129,0,267.89,R,REDACTED PERSONAL DATA,2200044,
Community Care,ADULT DISABILITY SERVICES,Social Care and Health,CLDT,Third Party Payments,Third Party,Personal Care.,,20/09/2022,318129,0,178.59,R,REDACTED PERSONAL DATA,2203759,
Community Care,ADULT DISABILITY SERVICES,Social Care and Health,CLDT,Third Party Payments,Third Party,Personal Care.,,20/09/2022,318129,0,19.8,R,REDACTED PERSONAL DATA,270623,
Community Care,ADULT DISABILITY SERVICES,Social Care and Health,CLDT,Third Party Payments,Third Party,Personal Care.,,20/09/2022,318129,0,19.8,R,REDACTED PERSONAL DATA,270623,
Community Care,ADULT DISABILITY SERVICES,Social Care and Health,CLDT,Third Party Payments,Third Party,Personal Care.,,20/09/2022,318129,0,19.8,R,REDACTED PERSONAL DATA,270623,
Community Care,ADULT DISABILITY SERVICES,Social Care and Health,CLDT,Third Party Payments,Third Party,Personal Care.,,20/09/2022,318129,0,19.8,R,REDACTED PERSONAL DATA,270623,
Community Care,ADULT DISABILITY SERVICES,Social Care and Health,Resettlement,Third Party Payments,Third Party,Personal Care.,,20/09/2022,318129,0,309.16,R,REDACTED PERSONAL DATA,296702,
Schools Total,School Group 2 � Pupil Capacity 144-314,MCC Schools,Llanfoist Fawr Primary School,Supplies & Services,"Equipment, Furniture and Materials",Materials & Consumables.,,20/09/2022,11051307,80088304,38,R,Hope Education Ltd,200969,
Schools Total,School Group 2 � Pupil Capacity 144-314,MCC Schools,Llanfoist Fawr Primary School,Supplies & Services,"Printing, Stationery and General Office Expenses",Stationery,,20/09/2022,11051308,80088335,195,R,Complete Business Solutions Group Ltd,201017,
Neighbourhood Services,Waste and Street Services,Communities & Place,Grounds,Supplies & Services,"Equipment, Furniture and Materials",Materials & Consumables.,,15/09/2022,11036360,10122690,44.2,R,Robert Price Builders Merchants Ltd,200061,
Neighbourhood Services,Waste and Street Services,Communities & Place,Grounds,Supplies & Services,"Equipment, Furniture and Materials",Materials & Consumables.,,15/09/2022,11038589,10122690,30.7,R,Robert Price Builders Merchants Ltd,200061,
Neighbourhood Services,Waste and Street Services,Communities & Place,Grounds,Supplies & Services,"Equipment, Furniture and Materials",Materials & Consumables.,,15/09/2022,11038590,10122690,15.62,R,Robert Price Builders Merchants Ltd,200061,
Neighbourhood Services,Waste and Street Services,Communities & Place,Grounds,Supplies & Services,"Equipment, Furniture and Materials",Materials & Consumables.,,15/09/2022,11050692,10124441,3.8,R,Fasteners & Engineering Suppliers Ltd,296712,
Neighbourhood Services,Waste and Street Services,Communities & Place,Grounds,Supplies & Services,"Equipment, Furniture and Materials",Materials & Consumables.,,15/09/2022,11050693,10124441,9.66,R,Fasteners & Engineering Suppliers Ltd,296712,
Standards,Early Years,Children & Young People,Flying Start Grant,Transport,Direct Transport Costs,Transport Costs,,06/09/2022,11049256,10126432,1.03,R,Amazon  Payments UK Ltd (Punchout),2202048,
Community Care,ADULT DISABILITY SERVICES,Social Care and Health,CLDT,Third Party Payments,Third Party,Residential.,,16/09/2022,318121,0,7725.8,R,Eriskay Residential Care,211373,
Community Care,ADULT DISABILITY SERVICES,Social Care and Health,CLDT,Third Party Payments,Third Party,Residential.,,16/09/2022,318121,0,4619,R,Stroud Care Services Ltd,234048,
Community Care,Community Care Team,Social Care and Health,Mental Health Care Team,Third Party Payments,Third Party,Residential.,,16/09/2022,318121,0,3240,R,Milkwood Care Ltd T/A Ganarew House,211461,
Community Care,Community Care Team,Social Care and Health,Mental Health Care Team,Third Party Payments,Third Party,Residential.,,16/09/2022,318121,0,5910.57,R,Forward(Wales) Ltd,278316,
Community Care,Community Care Team,Social Care and Health,Mental Health Care Team,Third Party Payments,Third Party,Residential.,,16/09/2022,318121,0,4270.72,R,Shaw healthcare (Group) Ltd,294626,
Community Care,Community Care Team,Social Care and Health,Mental Health Care Team,Third Party Payments,Third Party,Residential.,,16/09/2022,318121,0,4400,R,Shaw healthcare (Group) Ltd,294626,
Community Care,Community Care Team,Social Care and Health,Mental Health Care Team,Third Party Payments,Third Party,Residential.,,16/09/2022,318121,0,4400,R,Shaw healthcare (Group) Ltd,294626,
Schools Total,School Group 7 � Pupil Capacity 501-1800,MCC Schools,Monmouth Comprehensive,Supplies & Services,"Equipment, Furniture and Materials",Advertising,,13/09/2022,11049638,80085396,90,R,Novascope IT Ltd,287259,
Schools Total,School Group 7 � Pupil Capacity 501-1800,MCC Schools,Chepstow School,Supplies & Services,Grants and Subscriptions,Subscriptions,,23/09/2022,11052928,80088432,1000,R,Jigsaw PSHE Ltd,2202672,
Schools Total,School Group 2 � Pupil Capacity 144-314,MCC Schools,Raglan CiW Primary School (VC),Premises,Cleaning and Domestic Supplies,Premises Pest Control,,20/09/2022,11051151,80088338,98,R,P&P Pest Control,200833,
"Commercial, Corporate & landlord Services",Property Services & Facilities Management,Resources,Reactive Maintenance,Premises,"Repairs, Alterations & Maintenance of Buildings",Building Improvements / Maintenance,,06/09/2022,11049199,90064612,1238.04,R,EFS Systems (UK) Ltd,2200607,
Schools Total,School Group 2 � Pupil Capacity 144-314,MCC Schools,Rogiet Primary School,Supplies & Services,Grants and Subscriptions,Subscriptions,,06/09/2022,11049185,80088089,637.5,R,Capita ESS Ltd,2202877,
"Enterprise, Housing & Community Animation",General Fund Housing,Communities & Place,Homelessness,Supplies & Services,Services,Homelessness Bed & Breakfast Accomodation,,13/09/2022,11049796,10123226,537.5,R,First Motorway Services Ltd,2203388,
"Enterprise, Housing & Community Animation",General Fund Housing,Communities & Place,Homelessness,Supplies & Services,Services,Homelessness Bed & Breakfast Accomodation,,12/09/2022,11049800,10123226,579.17,R,First Motorway Services Ltd,2203388,
"Enterprise, Housing & Community Animation",General Fund Housing,Communities & Place,Homelessness,Supplies & Services,Services,Homelessness Bed & Breakfast Accomodation,,13/09/2022,11050138,10123261,291.69,R,Raglan Lodge,2202447,
"Enterprise, Housing & Community Animation",General Fund Housing,Communities & Place,Homelessness,Supplies & Services,Services,Homelessness Bed & Breakfast Accomodation,,13/09/2022,11050139,10123261,291.69,R,Raglan Lodge,2202447,
"Enterprise, Housing & Community Animation",General Fund Housing,Communities & Place,Homelessness,Supplies & Services,Services,Homelessness Bed & Breakfast Accomodation,,13/09/2022,11050140,10123261,291.69,R,Raglan Lodge,2202447,
"Enterprise, Housing & Community Animation",General Fund Housing,Communities & Place,Homelessness,Supplies & Services,Services,Homelessness Bed & Breakfast Accomodation,,13/09/2022,11050141,10123261,291.69,R,Raglan Lodge,2202447,
"Enterprise, Housing & Community Animation",General Fund Housing,Communities & Place,Homelessness,Supplies & Services,Services,Homelessness Bed & Breakfast Accomodation,,13/09/2022,11050142,10123261,291.69,R,Raglan Lodge,2202447,
"Enterprise, Housing & Community Animation",General Fund Housing,Communities & Place,Homelessness,Supplies & Services,Services,Homelessness Bed & Breakfast Accomodation,,13/09/2022,11050143,10123261,291.69,R,Raglan Lodge,2202447,
"Enterprise, Housing & Community Animation",General Fund Housing,Communities & Place,Homelessness,Supplies & Services,Services,Homelessness Bed & Breakfast Accomodation,,13/09/2022,11050144,10123261,291.69,R,Raglan Lodge,2202447,
Schools Total,SCHGRP3 � School Group 3 � Pupil Capacity 315-500,MCC Schools,Deri View Primary School,Supplies & Services,Communications and Computing,Postages,,12/09/2022,11049964,80086301,50,R,Capital Play,2203163,
"Enterprise, Housing & Community Animation",General Fund Housing,Communities & Place,Homelessness,Supplies & Services,Services,Homelessness Bed & Breakfast Accomodation,,13/09/2022,11050145,10123261,291.69,R,Raglan Lodge,2202447,
"Enterprise, Housing & Community Animation",General Fund Housing,Communities & Place,Homelessness,Supplies & Services,Services,Homelessness Bed & Breakfast Accomodation,,13/09/2022,11050146,10123261,291.69,R,Raglan Lodge,2202447,
"Facilities, Fleet & Decarbonisation",Transport Department,Communities & Place,Transport,Transport,Contract Hire and Operating Leases,Vehicle Hire Charge,,23/09/2022,11050659,0,686.34,R,Runtech Ltd,2201313,
"Facilities, Fleet & Decarbonisation",Transport Department,Communities & Place,Transport,Transport,Contract Hire and Operating Leases,Vehicle Hire Charge,,23/09/2022,11050661,0,752.99,R,Runtech Ltd,2201313,
"Facilities, Fleet & Decarbonisation",Transport Department,Communities & Place,Transport,Transport,Contract Hire and Operating Leases,Vehicle Hire Charge,,23/09/2022,11052385,0,25,R,Maben Vehicle Hire,299931,
"Facilities, Fleet & Decarbonisation",Transport Department,Communities & Place,Transport,Transport,Contract Hire and Operating Leases,Vehicle Hire Charge,,23/09/2022,11050006,0,-258.54,R,Days Rental,231329,
"Facilities, Fleet & Decarbonisation",Transport Department,Communities & Place,Transport,Transport,Contract Hire and Operating Leases,Vehicle Hire Charge,,13/09/2022,11045482,0,171.94,R,Days Rental,231329,
"Enterprise, Housing & Community Animation",General Fund Housing,Communities & Place,Homelessness,Supplies & Services,Services,Homelessness Bed & Breakfast Accomodation,,13/09/2022,11050161,10125561,1659,R,The Park Hotel,2202558,
"Commercial, Corporate & landlord Services",Property Services & Facilities Management,Resources,Reactive Maintenance,Premises,"Repairs, Alterations & Maintenance of Buildings",Building Improvements / Maintenance,,13/09/2022,11050183,90064593,75,R,Ambassador Fire & Security LTD,295878,
"Commercial, Corporate & landlord Services",Property Services & Facilities Management,Resources,Office Services,Supplies & Services,"Printing, Stationery and General Office Expenses",Stationery,,20/09/2022,11050902,10126555,40,R,SRS Public,293522,
Community Care,Community Care Team,Social Care and Health,Mental Health Care Team,Third Party Payments,Third Party,Personal Care.,,20/09/2022,318129,0,309.16,R,REDACTED PERSONAL DATA,2202667,
Neighbourhood Services,Waste and Street Services,Communities & Place,Refuse & Cleansing Operations,Supplies & Services,Services,Training Charges,,05/09/2022,11045578,10123509,-115,R,Heads Of The Valley Training Con,239628,
Neighbourhood Services,Waste and Street Services,Communities & Place,Refuse & Cleansing Operations,Supplies & Services,Services,Training Charges,,05/09/2022,11045578,10123509,115,R,Heads Of The Valley Training Con,239628,
Neighbourhood Services,Waste and Street Services,Communities & Place,Refuse & Cleansing Operations,Supplies & Services,Services,Training Charges,,05/09/2022,11045578,10123509,1210,R,Heads Of The Valley Training Con,239628,
Neighbourhood Services,Highways,Communities & Place,Overhead - Mon Highways,Supplies & Services,Services,Training Charges,,26/09/2022,11050165,10126216,57.3,R,City & Guilds,208974,
Schools Total,School Group 2 � Pupil Capacity 144-314,MCC Schools,Thornwell Primary School,Premises,Cleaning and Domestic Supplies,Toilet Requisites,,03/10/2022,11059190,80088038,59.4,R,H D Adcock (Nelson) Ltd,208635,
Schools Total,School Group 2 � Pupil Capacity 144-314,MCC Schools,Thornwell Primary School,Supplies & Services,"Printing, Stationery and General Office Expenses",Stationery,,03/10/2022,11059171,80085280,18.42,R,Amazon Payments UK Limited,2200305,
Neighbourhood Services,Waste and Street Services,Communities & Place,Grounds,Supplies & Services,"Equipment, Furniture and Materials",Materials & Consumables.,,21/09/2022,11047997,10122690,89.58,R,Robert Price Builders Merchants Ltd,200061,
Neighbourhood Services,Highways,Communities & Place,Overhead - Mon Highways,Supplies & Services,Services,Training Charges,,26/09/2022,11050164,10126205,19.1,R,City & Guilds,208974,
Neighbourhood Services,Highways,Communities & Place,Overhead - Mon Highways,Supplies & Services,Services,Training Charges,,26/09/2022,11050163,10126194,38.2,R,City & Guilds,208974,
"Enterprise, Housing & Community Animation",General Fund Housing,Communities & Place,Monmouthshire Letting Service,Premises,Rents,Rents/Hire Of Premises.,,17/10/2022,11052403,0,575,R,REDACTED PERSONAL DATA,2202150,
"Enterprise, Housing & Community Animation",General Fund Housing,Communities & Place,Monmouthshire Letting Service,Premises,Rents,Rents/Hire Of Premises.,,17/10/2022,11052402,0,590,R,REDACTED PERSONAL DATA,2202717,
Schools Total,School Group 7 � Pupil Capacity 501-1800,MCC Schools,King Henry VIII Comprehensive,Supplies & Services,"Equipment, Furniture and Materials",Equipment Purchases,,14/09/2022,11050522,80088198,21.36,R,Hope Education Ltd,200969,
Schools Total,School Group 7 � Pupil Capacity 501-1800,MCC Schools,King Henry VIII Comprehensive,Supplies & Services,"Equipment, Furniture and Materials",Equipment Purchases,,14/09/2022,11050522,80088198,9.8,R,Hope Education Ltd,200969,
Schools Total,School Group 7 � Pupil Capacity 501-1800,MCC Schools,King Henry VIII Comprehensive,Supplies & Services,"Equipment, Furniture and Materials",Equipment Purchases,,14/09/2022,11050522,80088198,6.4,R,Hope Education Ltd,200969,
Schools Total,School Group 7 � Pupil Capacity 501-1800,MCC Schools,King Henry VIII Comprehensive,Supplies & Services,"Equipment, Furniture and Materials",Equipment Purchases,,14/09/2022,11050522,80088198,3.99,R,Hope Education Ltd,200969,
Neighbourhood Services,Waste and Street Services,Communities & Place,Refuse & Cleansing Operations,Third Party Payments,Third Party,General Contracts,,20/09/2022,11051113,10123517,97100.23,R,SUEZ Recycling and Recovery UK Ltd,278306,
"Facilities, Fleet & Decarbonisation",Transport Department,Communities & Place,Transport,Transport,Direct Transport Costs,All Other Non-Contract Transport Work.,,26/09/2022,11051170,0,75.35,R,Glenside Commercials Ltd,293813,
Schools Total,School Group 7 � Pupil Capacity 501-1800,MCC Schools,Caldicot School,Employees,Direct Employee Expenses,Agency Staff,,26/09/2022,11052942,80088472,131.65,R,TeacherActive,297314,
Schools Total,School Group 7 � Pupil Capacity 501-1800,MCC Schools,Caldicot School,Employees,Direct Employee Expenses,Agency Staff,,26/09/2022,11052944,80088477,189.32,R,Apollo Teaching Services LTD,295494,
"Facilities, Fleet & Decarbonisation",Transport Department,Communities & Place,Transport,Transport,Direct Transport Costs,All Other Non-Contract Transport Work.,,05/09/2022,11044528,0,9733.18,R,Walls Truck Services,212564,
"Facilities, Fleet & Decarbonisation",Transport Department,Communities & Place,Transport,Transport,Direct Transport Costs,All Other Non-Contract Transport Work.,,05/09/2022,11044529,0,157,R,Walls Truck Services,212564,
"Facilities, Fleet & Decarbonisation",Transport Department,Communities & Place,Transport,Transport,Direct Transport Costs,All Other Non-Contract Transport Work.,,05/09/2022,11044530,0,2045.19,R,Walls Truck Services,212564,
"Placemaking, Highways & Flooding",Highways Dev & Car Parks,Communities & Place,Traffic & Road Safety,Third Party Payments,Third Party,General Contracts,,15/09/2022,11041064,10125801,658,R,Swarco Traffic Ltd,299098,
"Enterprise, Housing & Community Animation",General Fund Housing,Communities & Place,Homelessness,Premises,"Repairs, Alterations & Maintenance of Buildings",Building Improvements / Maintenance,,21/09/2022,11051005,10126712,288,R,Highmore Facilities Ltd,2200953,
"Enterprise, Housing & Community Animation",General Fund Housing,Communities & Place,Lodgings Scheme,Premises,"Repairs, Alterations & Maintenance of Buildings",Building Improvements / Maintenance,,21/09/2022,11050242,10126635,275,R,Highmore Facilities Ltd,2200953,
Capital Division,Capital Dept,Capital,Capital Programme,Third Party Payments,Third Party,General Contracts,,21/09/2022,11050316,10124223,9184,C,GB Home Adaptations Limited,2203514,
"Policy, Scrutiny & Customer Service",Community Hubs,Chief Executive's Unit,Prison Libraries,Supplies & Services,"Equipment, Furniture and Materials",Furniture Purchases / Replacement,,21/09/2022,11051121,10126426,213.6,R,Gopak Ltd,2201462,
Children Services,Children Services Other,Social Care and Health,External Placements - CLA,Third Party Payments,Third Party,Fostering/Adoption Allowances,,21/09/2022,11049382,10125450,3670.09,R,Compass Fostering Wales Limited,298528,
Children Services,Children Services Other,Social Care and Health,External Placements - CLA,Third Party Payments,Third Party,Fostering/Adoption Allowances,,21/09/2022,11049383,10125451,3670.09,R,Compass Fostering Wales Limited,298528,
Children Services,Children Services Other,Social Care and Health,External Placements - CLA,Third Party Payments,Third Party,Fostering/Adoption Allowances,,21/09/2022,11050313,10123815,300,R,National Fostering Agency,294165,
Children Services,Children Services Other,Social Care and Health,External Placements - CLA,Third Party Payments,Third Party,Fostering/Adoption Allowances,,21/09/2022,11049506,10123391,4618.35,R,TLC Wales Fostering,299088,
"Commercial, Corporate & landlord Services",Property Services & Facilities Management,Resources,Resources,Premises,"Repairs, Alterations & Maintenance of Buildings",Building Improvements / Maintenance,,20/09/2022,11050850,90065552,1117.24,R,Hays Specialist Recruitment Ltd,290812,
Schools Total,School Group 7 � Pupil Capacity 501-1800,MCC Schools,King Henry VIII Comprehensive,Supplies & Services,"Equipment, Furniture and Materials",Equipment Purchases,,20/09/2022,11050924,80088228,16.66,R,Amazon Payments UK Limited,2200305,
Schools Total,School Group 2 � Pupil Capacity 144-314,MCC Schools,Ysgol Gymraeg Y Fenni,Supplies & Services,"Equipment, Furniture and Materials",Equipment Purchases,,22/09/2022,11050820,80087903,111.92,R,YPO,281293,
Schools Total,School Group 2 � Pupil Capacity 144-314,MCC Schools,Ysgol Gymraeg Y Fenni,Supplies & Services,"Equipment, Furniture and Materials",Equipment Purchases,,20/09/2022,11050827,80088225,88.8,R,Print 2 Media Ltd,2204100,
Schools Total,School Group 2 � Pupil Capacity 144-314,MCC Schools,Ysgol Gymraeg Y Fenni,Supplies & Services,"Equipment, Furniture and Materials",Equipment Purchases,,20/09/2022,11050846,80088350,21.1,R,RM Educational Resources Ltd,213173,
Schools Total,School Group 2 � Pupil Capacity 144-314,MCC Schools,Ysgol Gymraeg Y Fenni,Supplies & Services,"Equipment, Furniture and Materials",Equipment Purchases,,20/09/2022,11050847,80088351,54.6,R,RM Educational Resources Ltd,213173,
"Placemaking, Highways & Flooding",Highways Dev & Car Parks,Communities & Place,Traffic & Road Safety,Third Party Payments,Third Party,General Contracts,,15/09/2022,11048895,10126401,9823.81,R,Capita (Real Estate & Infrastructure) Ltd,281283,
"Enterprise, Housing & Community Animation",General Fund Housing,Communities & Place,Lodgings Scheme,Premises,"Repairs, Alterations & Maintenance of Buildings",Building Improvements / Maintenance,,15/09/2022,11050331,10126632,60,R,REDACTED PERSONAL DATA,292592,
"Facilities, Fleet & Decarbonisation",Transport Department,Communities & Place,Transport,Transport,Direct Transport Costs,All Other Non-Contract Transport Work.,,05/09/2022,11044531,0,157,R,Walls Truck Services,212564,
"Facilities, Fleet & Decarbonisation",Transport Department,Communities & Place,Transport,Transport,Direct Transport Costs,All Other Non-Contract Transport Work.,,05/09/2022,11044532,0,1943.64,R,Walls Truck Services,212564,
"Facilities, Fleet & Decarbonisation",Transport Department,Communities & Place,Transport,Transport,Direct Transport Costs,All Other Non-Contract Transport Work.,,05/09/2022,11044533,0,157,R,Walls Truck Services,212564,
"Commercial, Corporate & landlord Services",Asset Management,Resources,Cemeteries,Premises,"Repairs, Alterations & Maintenance of Buildings",Building Improvements / Maintenance,,20/09/2022,11052405,90065512,532,R,REDACTED PERSONAL DATA,260906,
Schools Total,School Group 2 � Pupil Capacity 144-314,MCC Schools,Raglan CiW Primary School (VC),Supplies & Services,"Equipment, Furniture and Materials",Materials & Consumables.,,08/09/2022,11049547,80087565,38.9,R,ESPO,273847,
Schools Total,School Group 2 � Pupil Capacity 144-314,MCC Schools,Raglan CiW Primary School (VC),Supplies & Services,"Equipment, Furniture and Materials",Materials & Consumables.,,08/09/2022,11049641,80086753,3.08,R,ESPO,273847,
Schools Total,School Group 2 � Pupil Capacity 144-314,MCC Schools,Raglan CiW Primary School (VC),Supplies & Services,"Equipment, Furniture and Materials",Materials & Consumables.,,08/09/2022,11049645,80086914,9.35,R,ESPO,273847,
Schools Total,School Group 2 � Pupil Capacity 144-314,MCC Schools,Raglan CiW Primary School (VC),Supplies & Services,"Equipment, Furniture and Materials",Materials & Consumables.,,08/09/2022,11049645,80086914,9.35,R,ESPO,273847,
Schools Total,School Group 2 � Pupil Capacity 144-314,MCC Schools,Raglan CiW Primary School (VC),Supplies & Services,"Equipment, Furniture and Materials",Materials & Consumables.,,08/09/2022,11049647,80087172,1.84,R,ESPO,273847,
Schools Total,School Group 2 � Pupil Capacity 144-314,MCC Schools,Raglan CiW Primary School (VC),Supplies & Services,"Equipment, Furniture and Materials",Materials & Consumables.,,08/09/2022,11049647,80087172,2.32,R,ESPO,273847,
Schools Total,School Group 2 � Pupil Capacity 144-314,MCC Schools,Raglan CiW Primary School (VC),Supplies & Services,"Equipment, Furniture and Materials",Materials & Consumables.,,08/09/2022,11049647,80087172,1.81,R,ESPO,273847,
Schools Total,School Group 2 � Pupil Capacity 144-314,MCC Schools,Raglan CiW Primary School (VC),Supplies & Services,"Equipment, Furniture and Materials",Materials & Consumables.,,08/09/2022,11049647,80087172,10.25,R,ESPO,273847,
Schools Total,School Group 2 � Pupil Capacity 144-314,MCC Schools,Raglan CiW Primary School (VC),Supplies & Services,"Equipment, Furniture and Materials",Materials & Consumables.,,08/09/2022,11049647,80087172,6.76,R,ESPO,273847,
"Commercial, Corporate & landlord Services",Property Services & Facilities Management,Resources,Office Services,Supplies & Services,"Equipment, Furniture and Materials",Equipment Purchases,,07/09/2022,11049325,0,-49.75,R,Amazon  Payments UK Ltd (Punchout),2202048,
"Commercial, Corporate & landlord Services",Property Services & Facilities Management,Resources,Gwent Police Collaboration,Premises,"Repairs, Alterations & Maintenance of Buildings",Building Improvements / Maintenance,,08/09/2022,11049667,760019221,247.77,R,Lorne Stewart  Plc,251159,
"Commercial, Corporate & landlord Services",Property Services & Facilities Management,Resources,Gwent Police Collaboration,Premises,"Repairs, Alterations & Maintenance of Buildings",Building Improvements / Maintenance,,15/09/2022,11050574,760019848,149.77,R,A.J Quinn Building Contractors Ltd,290506,
"Commercial, Corporate & landlord Services",Property Services & Facilities Management,Resources,Gwent Police Collaboration,Premises,"Repairs, Alterations & Maintenance of Buildings",Building Improvements / Maintenance,,15/09/2022,11050576,760019886,176.28,R,A.J Quinn Building Contractors Ltd,290506,
"Leisure, Youth & Outdoor Adventure",Youth & Education,MonLife Directorate,Community Education Youth General,Supplies & Services,"Equipment, Furniture and Materials",Equipment Purchases,,15/09/2022,11050605,10126304,6000,R,Urdd Gobaith Cymru,218037,
Schools Total,School Group 7 � Pupil Capacity 501-1800,MCC Schools,King Henry VIII Comprehensive,Premises,"Repairs, Alterations & Maintenance of Buildings",Premises Repairs And Maintenance,,20/09/2022,11051138,80088011,2.4,R,Trade UK,293268,
Schools Total,School Group 7 � Pupil Capacity 501-1800,MCC Schools,King Henry VIII Comprehensive,Premises,"Repairs, Alterations & Maintenance of Buildings",Premises Repairs And Maintenance,,20/09/2022,11051138,80088011,2.18,R,Trade UK,293268,
Schools Total,School Group 7 � Pupil Capacity 501-1800,MCC Schools,King Henry VIII Comprehensive,Premises,"Repairs, Alterations & Maintenance of Buildings",Premises Repairs And Maintenance,,20/09/2022,11051138,80088011,2.42,R,Trade UK,293268,
Schools Total,School Group 7 � Pupil Capacity 501-1800,MCC Schools,King Henry VIII Comprehensive,Premises,"Repairs, Alterations & Maintenance of Buildings",Premises Repairs And Maintenance,,20/09/2022,11051138,80088011,2.35,R,Trade UK,293268,
Schools Total,School Group 7 � Pupil Capacity 501-1800,MCC Schools,King Henry VIII Comprehensive,Premises,"Repairs, Alterations & Maintenance of Buildings",Premises Repairs And Maintenance,,20/09/2022,11051138,80088011,27.14,R,Trade UK,293268,
Schools Total,School Group 7 � Pupil Capacity 501-1800,MCC Schools,King Henry VIII Comprehensive,Premises,"Repairs, Alterations & Maintenance of Buildings",Premises Repairs And Maintenance,,20/09/2022,11051140,80088011,15.33,R,Trade UK,293268,
"Facilities, Fleet & Decarbonisation",Transport Department,Communities & Place,Transport,Transport,Direct Transport Costs,Tyres And Tubes,,08/09/2022,11049519,0,283.78,R,Malvern Tyres (Wholesale) Ltd,296236,
Children Services,Children Services Teams,Social Care and Health,Long Term Support Team,Third Party Payments,Third Party,Third party payments NOT relating to goods or services,,20/09/2022,11052387,0,43,R,REDACTED PERSONAL DATA,2202893,
"Facilities, Fleet & Decarbonisation",Transport Department,Communities & Place,Transport,Transport,Direct Transport Costs,Tyres And Tubes,,08/09/2022,11049520,0,170.26,R,Malvern Tyres (Wholesale) Ltd,296236,
"Facilities, Fleet & Decarbonisation",Transport Department,Communities & Place,Transport,Transport,Direct Transport Costs,Tyres And Tubes,,08/09/2022,11049521,0,204.63,R,Malvern Tyres (Wholesale) Ltd,296236,
"Facilities, Fleet & Decarbonisation",Transport Department,Communities & Place,Transport,Transport,Direct Transport Costs,Tyres And Tubes,,08/09/2022,11049522,0,624.36,R,Malvern Tyres (Wholesale) Ltd,296236,
"Facilities, Fleet & Decarbonisation",Transport Department,Communities & Place,Transport,Transport,Direct Transport Costs,Tyres And Tubes,,08/09/2022,11049523,0,493.98,R,Malvern Tyres (Wholesale) Ltd,296236,
"Facilities, Fleet & Decarbonisation",Transport Department,Communities & Place,Transport,Transport,Contract Hire and Operating Leases,Vehicle Leases,,08/09/2022,11049554,0,1070,R,Societe Generale Equipment Finance Limited,295651,
"Facilities, Fleet & Decarbonisation",Transport Department,Communities & Place,Transport,Transport,Contract Hire and Operating Leases,Vehicle Leases,,08/09/2022,11049554,0,1070,R,Societe Generale Equipment Finance Limited,295651,
"Facilities, Fleet & Decarbonisation",Transport Department,Communities & Place,Transport,Transport,Contract Hire and Operating Leases,Vehicle Leases,,08/09/2022,11049555,0,2610.18,R,Societe Generale Equipment Finance Limited,295651,
"Facilities, Fleet & Decarbonisation",Transport Department,Communities & Place,Transport,Transport,Contract Hire and Operating Leases,Vehicle Leases,,08/09/2022,11049555,0,3544.22,R,Societe Generale Equipment Finance Limited,295651,
"Facilities, Fleet & Decarbonisation",Transport Department,Communities & Place,Transport,Transport,Contract Hire and Operating Leases,Vehicle Leases,,08/09/2022,11049555,0,3562.12,R,Societe Generale Equipment Finance Limited,295651,
"Facilities, Fleet & Decarbonisation",Transport Department,Communities & Place,Transport,Transport,Contract Hire and Operating Leases,Vehicle Leases,,08/09/2022,11049555,0,3544.22,R,Societe Generale Equipment Finance Limited,295651,
"Facilities, Fleet & Decarbonisation",Transport Department,Communities & Place,Transport,Transport,Contract Hire and Operating Leases,Vehicle Leases,,08/09/2022,11049555,0,1535.4,R,Societe Generale Equipment Finance Limited,295651,
"Facilities, Fleet & Decarbonisation",Transport Department,Communities & Place,Transport,Transport,Contract Hire and Operating Leases,Vehicle Leases,,08/09/2022,11049555,0,1535.4,R,Societe Generale Equipment Finance Limited,295651,
"Facilities, Fleet & Decarbonisation",Transport Department,Communities & Place,Transport,Transport,Contract Hire and Operating Leases,Vehicle Leases,,08/09/2022,11049556,0,2445.08,R,Societe Generale Equipment Finance Limited,295651,
"Facilities, Fleet & Decarbonisation",Transport Department,Communities & Place,Transport,Transport,Contract Hire and Operating Leases,Vehicle Leases,,08/09/2022,11049556,0,2445.08,R,Societe Generale Equipment Finance Limited,295651,
"Facilities, Fleet & Decarbonisation",Transport Department,Communities & Place,Transport,Transport,Contract Hire and Operating Leases,Vehicle Leases,,08/09/2022,11049556,0,2445.08,R,Societe Generale Equipment Finance Limited,295651,
"Facilities, Fleet & Decarbonisation",Transport Department,Communities & Place,Transport,Transport,Direct Transport Costs,Spare Parts,,08/09/2022,11049577,0,49.25,R,Mon & Border Motor Factors Ltd,200544,
"Facilities, Fleet & Decarbonisation",Transport Department,Communities & Place,Transport,Transport,Direct Transport Costs,Vehicle Collision Damage Costs,,08/09/2022,11049581,0,72.24,R,Motorcare,269917,
"Facilities, Fleet & Decarbonisation",Transport Department,Communities & Place,Transport,Transport,Direct Transport Costs,Spare Parts,,08/09/2022,11049675,0,99.5,R,Mon & Border Motor Factors Ltd,200544,
"Facilities, Fleet & Decarbonisation",Transport Department,Communities & Place,Transport,Transport,Direct Transport Costs,Spare Parts,,08/09/2022,11049677,0,154,R,Mon & Border Motor Factors Ltd,200544,
"Facilities, Fleet & Decarbonisation",Transport Department,Communities & Place,Transport,Transport,Direct Transport Costs,Spare Parts,,05/09/2022,11044636,0,91.97,R,Mon & Border Motor Factors Ltd,200544,
"Facilities, Fleet & Decarbonisation",Transport Department,Communities & Place,Transport,Transport,Direct Transport Costs,Spare Parts,,05/09/2022,11044972,0,1187.64,R,Dennis Eagle Limited,200102,
"Facilities, Fleet & Decarbonisation",Transport Department,Communities & Place,Transport,Transport,Direct Transport Costs,Spare Parts,,05/09/2022,11044975,0,0.32,R,Euro Commercials (South Wales) L,241642,
"Facilities, Fleet & Decarbonisation",Transport Department,Communities & Place,Transport,Transport,Direct Transport Costs,Spare Parts,,05/09/2022,11044976,0,210.35,R,Glenside Commercials Ltd,293813,
"Facilities, Fleet & Decarbonisation",Transport Department,Communities & Place,Transport,Transport,Direct Transport Costs,Spare Parts,,05/09/2022,11044977,0,32.94,R,Euro Commercials (South Wales) L,241642,
"Facilities, Fleet & Decarbonisation",Transport Department,Communities & Place,Transport,Transport,Direct Transport Costs,Spare Parts,,05/09/2022,11044982,0,384.84,R,NTM - GB Limited,294299,
"Facilities, Fleet & Decarbonisation",Transport Department,Communities & Place,Transport,Transport,Direct Transport Costs,Vehicle Collision Damage Costs,,05/09/2022,11044635,0,45.75,R,Mon & Border Motor Factors Ltd,200544,
Children Services,Children Services Teams,Social Care and Health,Long Term Support Team,Supplies & Services,Services,Professional And Specialist Fees,,15/09/2022,11050604,10125780,26.96,R,Security Plus Limited,299661,
"Facilities, Fleet & Decarbonisation",Home to School Transport Dept,Communities & Place,Special Educational Needs,Transport,Contract Hire and Operating Leases,PTU Vehicle Contracts,,16/09/2022,11051079,0,1783.65,R,Jems Taxi,2203332,
"Facilities, Fleet & Decarbonisation",Home to School Transport Dept,Communities & Place,Special Educational Needs,Transport,Contract Hire and Operating Leases,PTU Vehicle Contracts,,16/09/2022,11051080,0,21635.66,R,K & M Taxis Executive Hire Ltd,292600,
"Facilities, Fleet & Decarbonisation",Home to School Transport Dept,Communities & Place,School Transport � External,Transport,Contract Hire and Operating Leases,PTU Vehicle Contracts,,16/09/2022,11051074,0,2649.17,R,Fast Cars of Abergavenny,2200064,
"Facilities, Fleet & Decarbonisation",Transport Department,Communities & Place,Transport,Supplies & Services,"Equipment, Furniture and Materials",Materials & Consumables.,,05/09/2022,11044634,0,1.21,R,Fasteners & Engineering Suppliers Ltd,296712,
Schools Total,School Group 1 � Pupil Capacity 1-143,MCC Schools,Llanvihangel Crucorney Primary School,Supplies & Services,"Equipment, Furniture and Materials",Materials & Consumables.,,15/09/2022,11050722,80087679,20.69,R,RM Educational Resources Ltd,213173,
Schools Total,School Group 7 � Pupil Capacity 501-1800,MCC Schools,Caldicot School,Supplies & Services,"Equipment, Furniture and Materials",Materials & Consumables.,,15/09/2022,11050719,80087367,190.69,R,Scientific Laboratory Supplies Ltd,297137,
Schools Total,School Group 7 � Pupil Capacity 501-1800,MCC Schools,Caldicot School,Supplies & Services,"Equipment, Furniture and Materials",Materials & Consumables.,,15/09/2022,11050758,80088273,41.66,R,Amazon Payments UK Limited,2200305,
Schools Total,School Group 7 � Pupil Capacity 501-1800,MCC Schools,Caldicot School,Supplies & Services,"Equipment, Furniture and Materials",Materials & Consumables.,,15/09/2022,11050776,80088273,9.16,R,Amazon Payments UK Limited,2200305,
"Leisure, Youth & Outdoor Adventure",Leisure Services,MonLife Directorate,Monmouth Leisure Centre,Supplies & Services,Catering,Catering,,15/09/2022,11050683,10122932,11.91,R,Castell Howell Foods Ltd,261117,
"Facilities, Fleet & Decarbonisation",Home to School Transport Dept,Communities & Place,School Transport � External,Transport,Contract Hire and Operating Leases,PTU Vehicle Contracts,,16/09/2022,11051105,0,3428.33,R,REDACTED PERSONAL DATA,2204164,
"Facilities, Fleet & Decarbonisation",Home to School Transport Dept,Communities & Place,School Transport � External,Transport,Contract Hire and Operating Leases,PTU Vehicle Contracts,,16/09/2022,11051107,0,2663.33,R,S R Transport,2204238,
"Facilities, Fleet & Decarbonisation",Home to School Transport Dept,Communities & Place,SEN Post 16 Travel,Transport,Contract Hire and Operating Leases,PTU Vehicle Contracts,,16/09/2022,11051106,0,124,R,Newport Transfer Ltd,2203890,
"Facilities, Fleet & Decarbonisation",Transport Department,Communities & Place,Transport,Supplies & Services,"Equipment, Furniture and Materials",Materials & Consumables.,,05/09/2022,11045084,0,145.92,R,Mon & Border Motor Factors Ltd,200544,
"Facilities, Fleet & Decarbonisation",Transport Department,Communities & Place,Transport,Supplies & Services,"Equipment, Furniture and Materials",Materials & Consumables.,,05/09/2022,11045085,0,14.52,R,Mon & Border Motor Factors Ltd,200544,
"Facilities, Fleet & Decarbonisation",Home to School Transport Dept,Communities & Place,SEN Post 16 Travel,Transport,Contract Hire and Operating Leases,PTU Vehicle Contracts,,16/09/2022,11051084,0,2686.05,R,Murrays Minibus Hire,2201003,
"Facilities, Fleet & Decarbonisation",Home to School Transport Dept,Communities & Place,School Transport � External,Transport,Contract Hire and Operating Leases,PTU Vehicle Contracts,,16/09/2022,11051065,0,2115.91,R,REDACTED PERSONAL DATA,208472,
"Facilities, Fleet & Decarbonisation",Home to School Transport Dept,Communities & Place,School Transport � External,Transport,Contract Hire and Operating Leases,PTU Vehicle Contracts,,16/09/2022,11051065,0,3632.79,R,REDACTED PERSONAL DATA,208472,
"Facilities, Fleet & Decarbonisation",Home to School Transport Dept,Communities & Place,School Transport � External,Transport,Contract Hire and Operating Leases,PTU Vehicle Contracts,,16/09/2022,11051066,0,877.33,R,REDACTED PERSONAL DATA,2200993,
"Facilities, Fleet & Decarbonisation",Home to School Transport Dept,Communities & Place,School Transport � External,Transport,Contract Hire and Operating Leases,PTU Vehicle Contracts,,16/09/2022,11051067,0,16622.29,R,REDACTED PERSONAL DATA,289170,
"Facilities, Fleet & Decarbonisation",Home to School Transport Dept,Communities & Place,School Transport � External,Transport,Contract Hire and Operating Leases,PTU Vehicle Contracts,,16/09/2022,11051067,0,16586.81,R,REDACTED PERSONAL DATA,289170,
"Facilities, Fleet & Decarbonisation",Home to School Transport Dept,Communities & Place,School Transport � External,Transport,Contract Hire and Operating Leases,PTU Vehicle Contracts,,16/09/2022,11051067,0,2498.83,R,REDACTED PERSONAL DATA,289170,
"Facilities, Fleet & Decarbonisation",Home to School Transport Dept,Communities & Place,School Transport � External,Transport,Contract Hire and Operating Leases,PTU Vehicle Contracts,,16/09/2022,11051068,0,936.4,R,Avenue Taxis,297725,
"Facilities, Fleet & Decarbonisation",Home to School Transport Dept,Communities & Place,School Transport � External,Transport,Contract Hire and Operating Leases,PTU Vehicle Contracts,,16/09/2022,11051069,0,2309.92,R,Blackhouse Travel,2201118,
"Facilities, Fleet & Decarbonisation",Home to School Transport Dept,Communities & Place,School Transport � External,Transport,Contract Hire and Operating Leases,PTU Vehicle Contracts,,16/09/2022,11051069,0,3452.12,R,Blackhouse Travel,2201118,
"Facilities, Fleet & Decarbonisation",Home to School Transport Dept,Communities & Place,School Transport � External,Transport,Contract Hire and Operating Leases,PTU Vehicle Contracts,,16/09/2022,11051069,0,2267.84,R,Blackhouse Travel,2201118,
"Facilities, Fleet & Decarbonisation",Home to School Transport Dept,Communities & Place,School Transport � External,Transport,Contract Hire and Operating Leases,PTU Vehicle Contracts,,16/09/2022,11051070,0,5846.1,R,C and P Transport,2200258,
"Facilities, Fleet & Decarbonisation",Home to School Transport Dept,Communities & Place,School Transport � External,Transport,Contract Hire and Operating Leases,PTU Vehicle Contracts,,16/09/2022,11051070,0,5651.14,R,C and P Transport,2200258,
"Facilities, Fleet & Decarbonisation",Home to School Transport Dept,Communities & Place,School Transport � External,Transport,Contract Hire and Operating Leases,PTU Vehicle Contracts,,16/09/2022,11051084,0,1232.02,R,Murrays Minibus Hire,2201003,
"Facilities, Fleet & Decarbonisation",Home to School Transport Dept,Communities & Place,School Transport � External,Transport,Contract Hire and Operating Leases,PTU Vehicle Contracts,,16/09/2022,11051084,0,2450.17,R,Murrays Minibus Hire,2201003,
"Facilities, Fleet & Decarbonisation",Home to School Transport Dept,Communities & Place,School Transport � External,Transport,Contract Hire and Operating Leases,PTU Vehicle Contracts,,16/09/2022,11051084,0,4686.25,R,Murrays Minibus Hire,2201003,
"Commercial, Corporate & landlord Services",Property Services & Facilities Management,Resources,Reactive Maintenance,Premises,"Repairs, Alterations & Maintenance of Buildings",Building Improvements / Maintenance,,13/09/2022,11050193,90065021,187.5,R,Ambassador Fire & Security LTD,295878,
"Commercial, Corporate & landlord Services",Property Services & Facilities Management,Resources,Reactive Maintenance,Premises,"Repairs, Alterations & Maintenance of Buildings",Building Improvements / Maintenance,,06/09/2022,11049203,90064691,62.07,R,EFS Systems (UK) Ltd,2200607,
"Commercial, Corporate & landlord Services",Property Services & Facilities Management,Resources,Reactive Maintenance,Premises,"Repairs, Alterations & Maintenance of Buildings",Building Improvements / Maintenance,,13/09/2022,11050208,90065272,79.5,R,Ambassador Fire & Security LTD,295878,
Community Care,Community Care Team,Social Care and Health,Abergavenny Adult Team,Third Party Payments,Third Party,Nursing.,,06/09/2022,318076,0,2188.57,R,Avenue Road Nursing Home,264755,
"Commercial, Corporate & landlord Services",Property Services & Facilities Management,Resources,Reactive Maintenance,Premises,"Repairs, Alterations & Maintenance of Buildings",Building Improvements / Maintenance,,13/09/2022,11050211,90065355,50,R,Ambassador Fire & Security LTD,295878,
Community Care,Community Care Team,Social Care and Health,Mental Health Care Team,Third Party Payments,Third Party,Residential.,,06/09/2022,318076,0,2041.71,R,Gibraltar Care Village Limited t/a PSP Healthcare Limited,278814,
Finance,Finance & Improvement Dept,Resources,Central Finance,Supplies & Services,Communications and Computing,Computer Licences,,14/09/2022,11050699,10125992,2480.4,R,Logotech Systems,201078,
"Policy, Scrutiny & Customer Service",Community Hubs,Chief Executive's Unit,Strategic Management,Supplies & Services,Communications and Computing,Computer Licences,,26/09/2022,11041566,10125835,438.13,R,SRS Public,293522,
"Policy, Scrutiny & Customer Service",Community Education,Chief Executive's Unit,Community Education Adult General,Supplies & Services,Communications and Computing,Computer Licences,,26/09/2022,11045523,10122653,198,R,Bibliotheca Ltd,291338,
"Placemaking, Highways & Flooding",Highways Dev & Car Parks,Communities & Place,Traffic & Road Safety,Supplies & Services,"Equipment, Furniture and Materials",Advertising,,26/09/2022,11041241,10126814,420,R,Tindle Newspapers Wales & The Borders Ltd,241905,
"Enterprise, Housing & Community Animation",General Fund Housing,Communities & Place,Homelessness,Supplies & Services,Services,Homelessness Bed & Breakfast Accomodation,,24/10/2022,11053712,0,197640,R,Rock Forge B&B,2202370,
"Enterprise, Housing & Community Animation",General Fund Housing,Communities & Place,Homelessness,Supplies & Services,Services,Homelessness Bed & Breakfast Accomodation,,24/10/2022,11053710,0,-117120,R,Rock Forge B&B,2202370,
"Enterprise, Housing & Community Animation",General Fund Housing,Communities & Place,Homelessness,Supplies & Services,Services,Homelessness Bed & Breakfast Accomodation,,24/10/2022,11053711,0,-197640,R,Rock Forge B&B,2202370,
"Enterprise, Housing & Community Animation",General Fund Housing,Communities & Place,Homelessness,Supplies & Services,Services,Homelessness Bed & Breakfast Accomodation,,24/10/2022,11053713,0,117120,R,Rock Forge B&B,2202370,
"Enterprise, Housing & Community Animation",Business Growth & Enterprise,Communities & Place,RDP Leader - Implementation Costs,Supplies & Services,"Equipment, Furniture and Materials",Display Materials,,07/09/2022,11049624,10125854,5933.99,R,AV Partsmaster Ltd,274240,
"Enterprise, Housing & Community Animation",General Fund Housing,Communities & Place,Homelessness,Supplies & Services,Services,Homelessness Bed & Breakfast Accomodation,,09/09/2022,11048389,10123261,291.69,R,Raglan Lodge,2202447,
"Enterprise, Housing & Community Animation",General Fund Housing,Communities & Place,Homelessness,Supplies & Services,Services,Homelessness Bed & Breakfast Accomodation,,09/09/2022,11048390,10123261,291.69,R,Raglan Lodge,2202447,
"Enterprise, Housing & Community Animation",General Fund Housing,Communities & Place,Homelessness,Supplies & Services,Services,Homelessness Bed & Breakfast Accomodation,,09/09/2022,11048391,10123261,291.69,R,Raglan Lodge,2202447,
"Enterprise, Housing & Community Animation",General Fund Housing,Communities & Place,Homelessness,Supplies & Services,Services,Homelessness Bed & Breakfast Accomodation,,09/09/2022,11048392,10123261,291.69,R,Raglan Lodge,2202447,
"Enterprise, Housing & Community Animation",General Fund Housing,Communities & Place,Homelessness,Supplies & Services,Services,Homelessness Bed & Breakfast Accomodation,,09/09/2022,11048393,10123261,291.69,R,Raglan Lodge,2202447,
"Enterprise, Housing & Community Animation",General Fund Housing,Communities & Place,Homelessness,Supplies & Services,Services,Homelessness Bed & Breakfast Accomodation,,09/09/2022,11048394,10123261,291.69,R,Raglan Lodge,2202447,
"Enterprise, Housing & Community Animation",General Fund Housing,Communities & Place,Homelessness,Supplies & Services,Services,Homelessness Bed & Breakfast Accomodation,,09/09/2022,11048395,10123261,291.69,R,Raglan Lodge,2202447,
"Commercial, Corporate & landlord Services",Property Services & Facilities Management,Resources,External Clients,Premises,"Repairs, Alterations & Maintenance of Buildings",Building Improvements / Maintenance,,14/09/2022,11050577,90065366,350.23,R,Hightech Water Services,2200055,
Schools Total,School Group 2 � Pupil Capacity 144-314,MCC Schools,Thornwell Primary School,Supplies & Services,Communications and Computing,Postages,,14/09/2022,11050731,80087966,2.49,R,Amazon Payments UK Limited,2200305,
Community Care,Community Care Team,Social Care and Health,Mental Health Care Team,Third Party Payments,Third Party,Residential.,,06/09/2022,318076,0,3240,R,Gibraltar Care Village Limited t/a PSP Healthcare Limited,278814,
Community Care,Community Care Team,Social Care and Health,Mental Health Care Team,Third Party Payments,Third Party,Residential.,,06/09/2022,318076,0,4165.71,R,Gibraltar Care Village Limited t/a PSP Healthcare Limited,278814,
Community Care,Community Care Team,Social Care and Health,Chepstow Adult Team,Third Party Payments,Third Party,Residential.,,06/09/2022,318076,0,2900,R,Crick Nursing Home,210961,
Community Care,Community Care Team,Social Care and Health,Monmouth Adult Team,Third Party Payments,Third Party,Residential.,,06/09/2022,318076,0,2900,R,Parade Residential Home,225421,
Community Care,Community Care Team,Social Care and Health,Monmouth Adult Team,Third Party Payments,Third Party,Residential.,,06/09/2022,318076,0,1173.85,R,Gibraltar Care Village Limited t/a PSP Healthcare Limited,278814,
Community Care,Community Care Team,Social Care and Health,Monmouth Adult Team,Third Party Payments,Third Party,Residential.,,06/09/2022,318076,0,128,R,Adriana Ltd,211379,
Community Care,Community Care Team,Social Care and Health,Mental Health Care Team,Third Party Payments,Third Party,Residential.,,06/09/2022,318076,0,3240,R,Gibraltar Care Village Limited t/a PSP Healthcare Limited,278814,
Community Care,Community Care Team,Social Care and Health,Chepstow Adult Team,Third Party Payments,Third Party,Residential.,,06/09/2022,318076,0,2900,R,REDACTED PERSONAL DATA,211371,
Schools Total,School Group 2 � Pupil Capacity 144-314,MCC Schools,Cross Ash Primary School,Premises,"Repairs, Alterations & Maintenance of Buildings",Premises Repairs And Maintenance,,15/09/2022,11050717,80085981,30.4,R,Baileys DIY ltd Abergavenny,295630,
"Leisure, Youth & Outdoor Adventure",Leisure Services,MonLife Directorate,Abergavenny Fitness,Supplies & Services,"Equipment, Furniture and Materials",Equipment Purchases,,15/09/2022,11050674,10120414,603,R,Technogym UK Ltd,267056,
"Leisure, Youth & Outdoor Adventure",Leisure Services,MonLife Directorate,Abergavenny Fitness,Supplies & Services,"Equipment, Furniture and Materials",Equipment Purchases,,15/09/2022,11050674,10120414,108,R,Technogym UK Ltd,267056,
"Leisure, Youth & Outdoor Adventure",Leisure Services,MonLife Directorate,Abergavenny Fitness,Supplies & Services,"Equipment, Furniture and Materials",Equipment Purchases,,15/09/2022,11050674,10120414,96,R,Technogym UK Ltd,267056,
"Leisure, Youth & Outdoor Adventure",Leisure Services,MonLife Directorate,Abergavenny Fitness,Supplies & Services,"Equipment, Furniture and Materials",Equipment Purchases,,15/09/2022,11050674,10120414,84,R,Technogym UK Ltd,267056,
"Leisure, Youth & Outdoor Adventure",Leisure Services,MonLife Directorate,Abergavenny Fitness,Supplies & Services,"Equipment, Furniture and Materials",Equipment Purchases,,15/09/2022,11050674,10120414,72,R,Technogym UK Ltd,267056,
"Leisure, Youth & Outdoor Adventure",Leisure Services,MonLife Directorate,Abergavenny Fitness,Supplies & Services,"Equipment, Furniture and Materials",Equipment Purchases,,15/09/2022,11050674,10120414,60,R,Technogym UK Ltd,267056,
"Leisure, Youth & Outdoor Adventure",Leisure Services,MonLife Directorate,Abergavenny Fitness,Supplies & Services,"Equipment, Furniture and Materials",Equipment Purchases,,15/09/2022,11050674,10120414,144.93,R,Technogym UK Ltd,267056,
Schools Total,SCHGRP3 � School Group 3 � Pupil Capacity 315-500,MCC Schools,The Dell Primary School,Supplies & Services,"Equipment, Furniture and Materials",Materials & Consumables.,,15/09/2022,11050623,80087717,701.62,R,ESPO,273847,
Schools Total,SCHGRP3 � School Group 3 � Pupil Capacity 315-500,MCC Schools,Deri View Primary School,Supplies & Services,"Equipment, Furniture and Materials",Materials & Consumables.,,15/09/2022,11050711,80079750,220,R,IKEA Business Accounts,291868,
Schools Total,SCHGRP3 � School Group 3 � Pupil Capacity 315-500,MCC Schools,Deri View Primary School,Employees,Direct Employee Expenses,Agency Staff,,26/09/2022,11053294,80086297,4615.13,R,Teaching Personnel,249395,
Schools Total,SCHGRP3 � School Group 3 � Pupil Capacity 315-500,MCC Schools,Overmonnow Primary School,Employees,Direct Employee Expenses,Agency Staff,,26/09/2022,11053505,80088150,4605.84,R,Teaching Personnel,249395,
Neighbourhood Services,Highways,Communities & Place,Stores,Supplies & Services,"Equipment, Furniture and Materials",Health & Safety Equipment.,,03/10/2022,11059164,10127022,58.75,R,Tudor Environmental,296280,
Neighbourhood Services,Highways,Communities & Place,Stores,Supplies & Services,"Equipment, Furniture and Materials",Health & Safety Equipment.,,03/10/2022,11059164,10127022,19.79,R,Tudor Environmental,296280,
Schools Total,School Group 2 � Pupil Capacity 144-314,MCC Schools,Thornwell Primary School,Supplies & Services,"Equipment, Furniture and Materials",Materials & Consumables.,,03/10/2022,11059181,80087966,2.91,R,Amazon Payments UK Limited,2200305,
Schools Total,School Group 2 � Pupil Capacity 144-314,MCC Schools,Thornwell Primary School,Supplies & Services,"Equipment, Furniture and Materials",Materials & Consumables.,,03/10/2022,11059181,80087966,2.91,R,Amazon Payments UK Limited,2200305,
Schools Total,School Group 2 � Pupil Capacity 144-314,MCC Schools,Thornwell Primary School,Supplies & Services,"Equipment, Furniture and Materials",Materials & Consumables.,,03/10/2022,11059181,80087966,2.91,R,Amazon Payments UK Limited,2200305,
Schools Total,School Group 2 � Pupil Capacity 144-314,MCC Schools,Thornwell Primary School,Supplies & Services,"Equipment, Furniture and Materials",Materials & Consumables.,,03/10/2022,11059181,80087966,2.49,R,Amazon Payments UK Limited,2200305,
Schools Total,School Group 2 � Pupil Capacity 144-314,MCC Schools,Thornwell Primary School,Supplies & Services,"Equipment, Furniture and Materials",Materials & Consumables.,,03/10/2022,11059183,80087966,18.25,R,Amazon Payments UK Limited,2200305,
Schools Total,School Group 7 � Pupil Capacity 501-1800,MCC Schools,King Henry VIII Comprehensive,Premises,"Repairs, Alterations & Maintenance of Buildings",Premises Repairs And Maintenance,,03/10/2022,11059103,80088807,4.39,R,Trade UK,293268,
Schools Total,School Group 7 � Pupil Capacity 501-1800,MCC Schools,King Henry VIII Comprehensive,Premises,"Repairs, Alterations & Maintenance of Buildings",Premises Repairs And Maintenance,,03/10/2022,11059103,80088807,11.17,R,Trade UK,293268,
Schools Total,School Group 1 � Pupil Capacity 1-143,MCC Schools,Llandogo Primary School,Employees,Direct Employee Expenses,Agency Staff,,03/10/2022,11059097,80088787,208.8,R,TeacherActive,297314,
"Facilities, Fleet & Decarbonisation",Home to School Transport Dept,Communities & Place,Special Educational Needs,Transport,Contract Hire and Operating Leases,PTU Vehicle Contracts,,16/09/2022,11051098,0,13737.02,R,Zahid Limited,2201052,
"Facilities, Fleet & Decarbonisation",Home to School Transport Dept,Communities & Place,Special Educational Needs,Transport,Contract Hire and Operating Leases,PTU Vehicle Contracts,,16/09/2022,11051102,0,1958.33,R,Queenie's Private Hire,2200814,
"Policy, Scrutiny & Customer Service",Ukraine,Chief Executive's Unit,Ukraine Support,Transport,Contract Hire and Operating Leases,PTU Vehicle Contracts,,16/09/2022,11051101,0,4675,R,BRIANS BUS,2204028,
"Enterprise, Housing & Community Animation",Business Growth & Enterprise,Communities & Place,Local Food Grant,Supplies & Services,Services,Professional And Specialist Fees,,20/09/2022,11051055,10105624,25000,R,Astario Systems Ltd,2202538,
Schools Total,School Group 2 � Pupil Capacity 144-314,MCC Schools,Dewstow Primary School,Supplies & Services,Services,Professional And Specialist Fees,,20/09/2022,11051129,80085189,240,R,A & T Taxis,262014,
Schools Total,School Group 7 � Pupil Capacity 501-1800,MCC Schools,King Henry VIII Comprehensive,Supplies & Services,"Printing, Stationery and General Office Expenses",Book Purchases,,20/09/2022,11051128,80084172,169.9,R,WJEC CBAC Limited,248050,
Schools Total,School Group 2 � Pupil Capacity 144-314,MCC Schools,Thornwell Primary School,Supplies & Services,"Printing, Stationery and General Office Expenses",Book Purchases,,15/09/2022,11050726,80087966,7.5,R,Amazon Payments UK Limited,2200305,
Children Services,Children Services Other,Social Care and Health,Fostering Allowances and Payments For Skills,Supplies & Services,Services,Private Nursery Fees,,15/09/2022,11050672,10116165,1487.5,R,Nevill Hall Creche,211763,
Children Services,Children Services Other,Social Care and Health,Fostering Allowances and Payments For Skills,Supplies & Services,Services,Private Nursery Fees,,15/09/2022,11050697,10125807,287.5,R,Nevill Hall Creche,211763,
"Facilities, Fleet & Decarbonisation",Home to School Transport Dept,Communities & Place,Special Educational Needs,Transport,Contract Hire and Operating Leases,PTU Vehicle Contracts,,16/09/2022,11051107,0,705,R,S R Transport,2204238,
"Facilities, Fleet & Decarbonisation",Home to School Transport Dept,Communities & Place,Special Educational Needs,Transport,Contract Hire and Operating Leases,PTU Vehicle Contracts,,16/09/2022,11051108,0,2805,R,Tidley Taxis,2200717,
"Facilities, Fleet & Decarbonisation",Transport Department,Communities & Place,Transport,Transport,Direct Transport Costs,Vehicle Collision Damage Costs,,05/09/2022,11044983,0,146.97,R,Euro Commercials (South Wales) L,241642,
"Facilities, Fleet & Decarbonisation",Transport Department,Communities & Place,Transport,Transport,Direct Transport Costs,Vehicle Collision Damage Costs,,05/09/2022,11044985,0,68.98,R,Euro Commercials (South Wales) L,241642,
"Facilities, Fleet & Decarbonisation",Transport Department,Communities & Place,Transport,Transport,Direct Transport Costs,Spare Parts,,05/09/2022,11044984,0,93.74,R,Euro Commercials (South Wales) L,241642,
"Facilities, Fleet & Decarbonisation",Transport Department,Communities & Place,Transport,Transport,Direct Transport Costs,Spare Parts,,05/09/2022,11044986,0,32.94,R,Euro Commercials (South Wales) L,241642,
Capital Division,Capital Dept,Capital,Capital Programme,Supplies & Services,Services,Professional And Specialist Fees,,05/09/2022,11045071,10124689,1600,C,Steve Ambler and Sons Tree Specialists Ltd,265482,
"Facilities, Fleet & Decarbonisation",Home to School Transport Dept,Communities & Place,Special Educational Needs,Transport,Contract Hire and Operating Leases,PTU Vehicle Contracts,,16/09/2022,11051068,0,5448.09,R,Avenue Taxis,297725,
"Facilities, Fleet & Decarbonisation",Home to School Transport Dept,Communities & Place,Special Educational Needs,Transport,Contract Hire and Operating Leases,PTU Vehicle Contracts,,16/09/2022,11051070,0,24707.06,R,C and P Transport,2200258,
"Facilities, Fleet & Decarbonisation",Home to School Transport Dept,Communities & Place,Special Educational Needs,Transport,Contract Hire and Operating Leases,PTU Vehicle Contracts,,16/09/2022,11051084,0,8768.9,R,Murrays Minibus Hire,2201003,
"Facilities, Fleet & Decarbonisation",Home to School Transport Dept,Communities & Place,Special Educational Needs,Transport,Contract Hire and Operating Leases,PTU Vehicle Contracts,,16/09/2022,11051085,0,1078.96,R,Oscars Taxis,2201001,
"Facilities, Fleet & Decarbonisation",Transport Department,Communities & Place,Transport,Transport,Direct Transport Costs,Vehicle Collision Damage Costs,,01/09/2022,11045471,0,233.95,R,Days Rental,231329,
"Facilities, Fleet & Decarbonisation",Transport Department,Communities & Place,Transport,Transport,Direct Transport Costs,Vehicle Collision Damage Costs,,01/09/2022,11045472,0,143.56,R,Days Rental,231329,
"Facilities, Fleet & Decarbonisation",Transport Department,Communities & Place,Transport,Transport,Direct Transport Costs,Vehicle Collision Damage Costs,,01/09/2022,11045475,0,12.5,R,Days Rental,231329,
"Facilities, Fleet & Decarbonisation",Transport Department,Communities & Place,Transport,Transport,Direct Transport Costs,Vehicle Collision Damage Costs,,01/09/2022,11045477,0,276.98,R,Days Rental,231329,
"Facilities, Fleet & Decarbonisation",Transport Department,Communities & Place,Transport,Transport,Direct Transport Costs,Vehicle Collision Damage Costs,,01/09/2022,11045474,0,23.58,R,Days Rental,231329,
"Facilities, Fleet & Decarbonisation",Transport Department,Communities & Place,Transport,Transport,Direct Transport Costs,Vehicle Collision Damage Costs,,01/09/2022,11045473,0,85,R,Days Rental,231329,
"Facilities, Fleet & Decarbonisation",Transport Department,Communities & Place,Transport,Transport,Direct Transport Costs,Vehicle Collision Damage Costs,,01/09/2022,11045470,0,136.81,R,Days Rental,231329,
Schools Total,School Group 2 � Pupil Capacity 144-314,MCC Schools,Raglan CiW Primary School (VC),Employees,Direct Employee Expenses,Agency Staff,,06/09/2022,11030039,80087897,684.3,R,TeacherActive,297314,
Schools Total,School Group 2 � Pupil Capacity 144-314,MCC Schools,Raglan CiW Primary School (VC),Employees,Direct Employee Expenses,Agency Staff,,06/09/2022,11030039,80087897,983.55,R,TeacherActive,297314,
Schools Total,School Group 2 � Pupil Capacity 144-314,MCC Schools,Raglan CiW Primary School (VC),Supplies & Services,"Equipment, Furniture and Materials",Materials & Consumables.,,06/09/2022,11029717,80087843,80,R,Juniper Education Services Limited,296749,
Schools Total,School Group 2 � Pupil Capacity 144-314,MCC Schools,Cantref Primary School,Supplies & Services,"Equipment, Furniture and Materials",Materials & Consumables.,,08/09/2022,11049706,80087635,6.15,R,Amazon Payments UK Limited,2200305,
Schools Total,School Group 2 � Pupil Capacity 144-314,MCC Schools,Dewstow Primary School,Supplies & Services,"Equipment, Furniture and Materials",Materials & Consumables.,,08/09/2022,11049870,80085969,17.58,R,Complete Business Solutions Group Ltd,201017,
"Leisure, Youth & Outdoor Adventure",Leisure Services,MonLife Directorate,Caldicot Leisure Centre,Supplies & Services,"Equipment, Furniture and Materials",Equipment Purchases,,26/09/2022,11050907,10126662,530.55,R,J P Lennard Ltd,208666,
Schools Total,School Group 2 � Pupil Capacity 144-314,MCC Schools,Cross Ash Primary School,Premises,"Repairs, Alterations & Maintenance of Buildings",Premises Repairs And Maintenance,,08/09/2022,11049488,80085981,149.01,R,Baileys DIY ltd Abergavenny,295630,
Schools Total,School Group 2 � Pupil Capacity 144-314,MCC Schools,St Mary�s RC Primary School (VA),Employees,Direct Employee Expenses,Agency Staff,,05/09/2022,11048607,80085095,1980.84,R,Teaching 4 Wales Ltd,267637,
Schools Total,School Group 2 � Pupil Capacity 144-314,MCC Schools,Raglan CiW Primary School (VC),Supplies & Services,"Equipment, Furniture and Materials",Materials & Consumables.,,06/09/2022,11029305,80087351,14.76,R,ESPO,273847,
Schools Total,School Group 2 � Pupil Capacity 144-314,MCC Schools,Raglan CiW Primary School (VC),Supplies & Services,"Equipment, Furniture and Materials",Materials & Consumables.,,06/09/2022,11029305,80087351,34.2,R,ESPO,273847,
Schools Total,School Group 2 � Pupil Capacity 144-314,MCC Schools,Raglan CiW Primary School (VC),Supplies & Services,"Equipment, Furniture and Materials",Materials & Consumables.,,06/09/2022,11029305,80087351,16.95,R,ESPO,273847,
Schools Total,School Group 2 � Pupil Capacity 144-314,MCC Schools,Raglan CiW Primary School (VC),Supplies & Services,"Equipment, Furniture and Materials",Materials & Consumables.,,06/09/2022,11029305,80087351,17,R,ESPO,273847,
Schools Total,School Group 2 � Pupil Capacity 144-314,MCC Schools,Raglan CiW Primary School (VC),Supplies & Services,"Equipment, Furniture and Materials",Materials & Consumables.,,06/09/2022,11029305,80087351,33.9,R,ESPO,273847,
"Leisure, Youth & Outdoor Adventure",Youth & Education,MonLife Directorate,Gilwern,Premises,Energy Costs,Electricity.,,16/09/2022,11051364,0,122.66,R,EDF Energy,212738,
Schools Total,School Group 2 � Pupil Capacity 144-314,MCC Schools,Thornwell Primary School,Supplies & Services,"Equipment, Furniture and Materials",Provisions.,,20/09/2022,11049549,80088043,108.14,R,Castell Howell Foods Ltd,261117,
Schools Total,School Group 2 � Pupil Capacity 144-314,MCC Schools,Thornwell Primary School,Supplies & Services,"Equipment, Furniture and Materials",Provisions.,,20/09/2022,11049549,80088043,9.28,R,Castell Howell Foods Ltd,261117,
Schools Total,School Group 2 � Pupil Capacity 144-314,MCC Schools,Thornwell Primary School,Supplies & Services,"Equipment, Furniture and Materials",Provisions.,,20/09/2022,11049549,80088043,-9.28,R,Castell Howell Foods Ltd,261117,
Children Services,Children Services Other,Social Care and Health,External Placements - CLA,Supplies & Services,Services,Professional And Specialist Fees,,21/09/2022,11051110,10123290,24078.2,R,Richmond Nursing Agency Ltd,2203303,
Community Care,Community Care Team,Social Care and Health,Monmouth Adult Team,Third Party Payments,Third Party,Personal Care.,,21/09/2022,11052410,0,480,R,Home Instead Senior Care,2202031,
Community Care,Community Care Team,Social Care and Health,Monmouth Adult Team,Third Party Payments,Third Party,Personal Care.,,21/09/2022,11052411,0,480,R,Home Instead Senior Care,2202031,
Community Care,Community Care Team,Social Care and Health,Monmouth Adult Team,Third Party Payments,Third Party,Personal Care.,,21/09/2022,11052478,0,1517.24,R,REDACTED PERSONAL DATA,2204253,
"Policy, Scrutiny & Customer Service",Community Hubs,Chief Executive's Unit,Community Hub - Monmouth,Premises,Energy Costs,Electricity.,,16/09/2022,11051446,0,328.31,R,EDF Energy,212738,
"Policy, Scrutiny & Customer Service",Community Hubs,Chief Executive's Unit,Community Hub - Caldicot,Premises,Energy Costs,Electricity.,,16/09/2022,11051448,0,378.78,R,EDF Energy,212738,
"Commercial, Corporate & landlord Services",Asset Management,Resources,Solar Farm,Premises,Energy Costs,Electricity.,,16/09/2022,11051586,0,305.08,R,EDF Energy,212738,
"Commercial, Corporate & landlord Services",Asset Management,Resources,MCC Markets,Premises,Energy Costs,Electricity.,,16/09/2022,11051379,0,26.85,R,EDF Energy,212738,
Schools Total,School Group 7 � Pupil Capacity 501-1800,MCC Schools,Caldicot School,Premises,Energy Costs,Gas.,,16/09/2022,11051519,0,1773.09,R,TOTAL GAS & POWER LIMITED,2202690,
Schools Total,School Group 2 � Pupil Capacity 144-314,MCC Schools,Gilwern Primary School,Premises,Energy Costs,Gas.,,16/09/2022,11051500,0,182.71,R,TOTAL GAS & POWER LIMITED,2202690,
Schools Total,School Group 2 � Pupil Capacity 144-314,MCC Schools,St Mary�s RC Primary School (VA),Premises,Energy Costs,Gas.,,16/09/2022,11051499,0,185.49,R,TOTAL GAS & POWER LIMITED,2202690,
Schools Total,School Group 2 � Pupil Capacity 144-314,MCC Schools,Raglan CiW Primary School (VC),Supplies & Services,"Equipment, Furniture and Materials",Materials & Consumables.,,06/09/2022,11029305,80087351,34.4,R,ESPO,273847,
Schools Total,School Group 2 � Pupil Capacity 144-314,MCC Schools,Raglan CiW Primary School (VC),Supplies & Services,"Equipment, Furniture and Materials",Materials & Consumables.,,06/09/2022,11029305,80087351,17,R,ESPO,273847,
Schools Total,School Group 2 � Pupil Capacity 144-314,MCC Schools,Raglan CiW Primary School (VC),Supplies & Services,"Equipment, Furniture and Materials",Materials & Consumables.,,06/09/2022,11029305,80087351,18.95,R,ESPO,273847,
Schools Total,School Group 2 � Pupil Capacity 144-314,MCC Schools,Raglan CiW Primary School (VC),Supplies & Services,"Equipment, Furniture and Materials",Materials & Consumables.,,06/09/2022,11029305,80087351,18.95,R,ESPO,273847,
Schools Total,School Group 2 � Pupil Capacity 144-314,MCC Schools,Raglan CiW Primary School (VC),Supplies & Services,"Equipment, Furniture and Materials",Materials & Consumables.,,06/09/2022,11029307,80087380,4.72,R,ESPO,273847,
Schools Total,School Group 2 � Pupil Capacity 144-314,MCC Schools,Raglan CiW Primary School (VC),Supplies & Services,"Equipment, Furniture and Materials",Materials & Consumables.,,06/09/2022,11029307,80087380,18.45,R,ESPO,273847,
Schools Total,School Group 2 � Pupil Capacity 144-314,MCC Schools,Raglan CiW Primary School (VC),Supplies & Services,"Equipment, Furniture and Materials",Materials & Consumables.,,06/09/2022,11029307,80087380,3.97,R,ESPO,273847,
Schools Total,SCHGRP3 � School Group 3 � Pupil Capacity 315-500,MCC Schools,Overmonnow Primary School,Supplies & Services,"Equipment, Furniture and Materials",Materials & Consumables.,,06/09/2022,11049048,80087578,130.3,R,Pyramid Educational Consultants UK,2203229,
Schools Total,School Group 2 � Pupil Capacity 144-314,MCC Schools,Raglan CiW Primary School (VC),Employees,Direct Employee Expenses,Agency Staff,,06/09/2022,11030039,80087897,521.4,R,TeacherActive,297314,
"Commercial, Corporate & landlord Services",Property Services & Facilities Management,Resources,Office Services,Supplies & Services,"Equipment, Furniture and Materials",Equipment Purchases,,06/09/2022,11045155,10126234,49.75,R,Amazon  Payments UK Ltd (Punchout),2202048,
Schools Total,School Group 2 � Pupil Capacity 144-314,MCC Schools,Raglan CiW Primary School (VC),Supplies & Services,"Equipment, Furniture and Materials",Materials & Consumables.,,06/09/2022,11029307,80087380,3.99,R,ESPO,273847,
Schools Total,School Group 2 � Pupil Capacity 144-314,MCC Schools,Raglan CiW Primary School (VC),Supplies & Services,"Equipment, Furniture and Materials",Materials & Consumables.,,06/09/2022,11029307,80087380,1.63,R,ESPO,273847,
Schools Total,School Group 2 � Pupil Capacity 144-314,MCC Schools,Raglan CiW Primary School (VC),Supplies & Services,"Equipment, Furniture and Materials",Materials & Consumables.,,06/09/2022,11029306,80087379,17.99,R,ESPO,273847,
Schools Total,School Group 2 � Pupil Capacity 144-314,MCC Schools,Raglan CiW Primary School (VC),Supplies & Services,"Equipment, Furniture and Materials",Materials & Consumables.,,06/09/2022,11029306,80087379,5.1,R,ESPO,273847,
Schools Total,School Group 2 � Pupil Capacity 144-314,MCC Schools,Raglan CiW Primary School (VC),Supplies & Services,"Equipment, Furniture and Materials",Materials & Consumables.,,06/09/2022,11029306,80087379,7.49,R,ESPO,273847,
Schools Total,School Group 2 � Pupil Capacity 144-314,MCC Schools,Raglan CiW Primary School (VC),Supplies & Services,"Equipment, Furniture and Materials",Materials & Consumables.,,06/09/2022,11029306,80087379,26.1,R,ESPO,273847,
"Facilities, Fleet & Decarbonisation",Transport Department,Communities & Place,Transport,Supplies & Services,"Equipment, Furniture and Materials",Small Plant & Tools.,,06/09/2022,11048185,0,63,R,Fast Fluid Power Ltd,256182,
Schools Total,School Group 2 � Pupil Capacity 144-314,MCC Schools,Ysgol Gymraeg Y Fenni,Supplies & Services,"Equipment, Furniture and Materials",Cleaning Materials.,,06/09/2022,11030528,80087876,23.31,R,H D Adcock (Nelson) Ltd,208635,
Schools Total,School Group 2 � Pupil Capacity 144-314,MCC Schools,Dewstow Primary School,Supplies & Services,"Equipment, Furniture and Materials",Materials & Consumables.,,06/09/2022,11049281,80085969,3966.1,R,Complete Business Solutions Group Ltd,201017,
Children Services,Children Services Teams,Social Care and Health,Family Support and Protection Team,Third Party Payments,Third Party,Individual Needs,,08/09/2022,11047569,10124618,13729.46,R,ProHealthCare Limited,2203317,
Schools Total,SCHGRP3 � School Group 3 � Pupil Capacity 315-500,MCC Schools,Undy Primary School,Employees,Direct Employee Expenses,Agency Staff,,13/09/2022,11048620,80085552,2498.94,R,Teaching 4 Wales Ltd,267637,
Schools Total,School Group 7 � Pupil Capacity 501-1800,MCC Schools,King Henry VIII Comprehensive,Premises,"Repairs, Alterations & Maintenance of Buildings",Premises Repairs And Maintenance,,13/09/2022,11045541,80087569,39,R,Springfield Supplies & Projects,288314,
Schools Total,School Group 2 � Pupil Capacity 144-314,MCC Schools,Dewstow Primary School,Supplies & Services,"Equipment, Furniture and Materials",Materials & Consumables.,,08/09/2022,11049869,80085969,20.3,R,Complete Business Solutions Group Ltd,201017,
Adult Services,Direct Care Residential,Social Care and Health,Mardy Park,Supplies & Services,"Equipment, Furniture and Materials",Cleaning Materials.,,08/09/2022,11049329,10112475,40.68,R,Newhall Janitorial Ltd,200912,
Children Services,Children Services Teams,Social Care and Health,Family Support and Protection Team,Third Party Payments,Third Party,Individual Needs,,08/09/2022,11048492,10124618,13664.38,R,ProHealthCare Limited,2203317,
Community Care,Community Care Team,Social Care and Health,Chepstow Adult Team,Third Party Payments,Third Party,Residential.,,06/09/2022,318076,0,2900,R,REDACTED PERSONAL DATA,211371,
Community Care,Community Care Team,Social Care and Health,Mental Health Care Team,Third Party Payments,Third Party,Residential.,,06/09/2022,318076,0,2900,R,REDACTED PERSONAL DATA,211371,
Community Care,Community Care Team,Social Care and Health,Mental Health Care Team,Third Party Payments,Third Party,Residential.,,06/09/2022,318076,0,2900,R,REDACTED PERSONAL DATA,211371,
Schools Total,School Group 2 � Pupil Capacity 144-314,MCC Schools,Dewstow Primary School,Supplies & Services,Grants and Subscriptions,Subscriptions,,09/09/2022,11049287,80087080,500,R,Twinkl.co.uk,2200303,
"Enterprise, Housing & Community Animation",General Fund Housing,Communities & Place,Homelessness,Supplies & Services,Services,Homelessness Bed & Breakfast Accomodation,,09/09/2022,11049352,10123226,669.17,R,First Motorway Services Ltd,2203388,
"Enterprise, Housing & Community Animation",General Fund Housing,Communities & Place,Homelessness,Supplies & Services,Services,Homelessness Bed & Breakfast Accomodation,,09/09/2022,11049353,10123226,669.17,R,First Motorway Services Ltd,2203388,
"Enterprise, Housing & Community Animation",General Fund Housing,Communities & Place,Homelessness,Supplies & Services,Services,Homelessness Bed & Breakfast Accomodation,,09/09/2022,11049354,10123226,669.17,R,First Motorway Services Ltd,2203388,
"Enterprise, Housing & Community Animation",General Fund Housing,Communities & Place,Homelessness,Supplies & Services,Services,Homelessness Bed & Breakfast Accomodation,,09/09/2022,11049355,10123226,669.17,R,First Motorway Services Ltd,2203388,
"Enterprise, Housing & Community Animation",General Fund Housing,Communities & Place,Homelessness,Supplies & Services,Services,Homelessness Bed & Breakfast Accomodation,,13/09/2022,11050237,10126596,1246,R,DAB Clubs Ltd,2204131,
"Enterprise, Housing & Community Animation",General Fund Housing,Communities & Place,Homelessness,Supplies & Services,Services,Homelessness Bed & Breakfast Accomodation,,13/09/2022,11050240,10126631,1641,R,DAB Clubs Ltd,2204131,
People,People Services,People & Governance,HR Recruitment Support,Supplies & Services,"Equipment, Furniture and Materials",Marketing Materials,,13/09/2022,11049951,10126581,345,R,REDACTED PERSONAL DATA,2203170,
"Enterprise, Housing & Community Animation",General Fund Housing,Communities & Place,Homelessness,Supplies & Services,Services,Homelessness Bed & Breakfast Accomodation,,13/09/2022,11050241,10126633,1967,R,360 Ventures,2202398,
Schools Total,School Group 2 � Pupil Capacity 144-314,MCC Schools,Cantref Primary School,Supplies & Services,Grants and Subscriptions,Subscriptions,,12/09/2022,11049988,80088145,405,R,Seesaw Learning,299117,
Schools Total,School Group 2 � Pupil Capacity 144-314,MCC Schools,Cantref Primary School,Supplies & Services,Grants and Subscriptions,Subscriptions,,12/09/2022,11049988,80088145,405,R,Seesaw Learning,299117,
"Facilities, Fleet & Decarbonisation",Transport Department,Communities & Place,Transport,Transport,Contract Hire and Operating Leases,Vehicle Hire Charge,,23/09/2022,11050007,0,-258.54,R,Days Rental,231329,
"Facilities, Fleet & Decarbonisation",Regional Transport,Communities & Place,Bus Services Support Grant,Supplies & Services,Grants and Subscriptions,Grants Payable,,16/09/2022,11051615,0,572.81,R,Village and Valleys,297253,
"Facilities, Fleet & Decarbonisation",Regional Transport,Communities & Place,Bus Services Support Grant,Supplies & Services,Grants and Subscriptions,Grants Payable,,16/09/2022,11051603,0,2638.59,R,Accessible Caring Transport (ACT),297252,
"Facilities, Fleet & Decarbonisation",Regional Transport,Communities & Place,Bus Services Support Grant,Supplies & Services,Grants and Subscriptions,Grants Payable,,16/09/2022,11051604,0,2267.73,R,Bridgend County Borough Council,216297,
"Facilities, Fleet & Decarbonisation",Regional Transport,Communities & Place,Bus Services Support Grant,Supplies & Services,Grants and Subscriptions,Grants Payable,,16/09/2022,11051605,0,2682.41,R,Bridgend Community Transport Ltd,295245,
"Facilities, Fleet & Decarbonisation",Regional Transport,Communities & Place,Bus Services Support Grant,Supplies & Services,Grants and Subscriptions,Grants Payable,,16/09/2022,11051606,0,3967.85,R,Caerphilly CBC,292548,
"Facilities, Fleet & Decarbonisation",Regional Transport,Communities & Place,Bus Services Support Grant,Supplies & Services,Grants and Subscriptions,Grants Payable,,16/09/2022,11051607,0,978.46,R,Caerphilly CBC,292548,
"Facilities, Fleet & Decarbonisation",Regional Transport,Communities & Place,Bus Services Support Grant,Supplies & Services,Grants and Subscriptions,Grants Payable,,16/09/2022,11051620,0,53975.55,R,Newport Transport Ltd,293720,
"Facilities, Fleet & Decarbonisation",Regional Transport,Communities & Place,Bus Services Support Grant,Supplies & Services,Grants and Subscriptions,Grants Payable,,16/09/2022,11051621,0,16358.53,R,Varteg Motors Ltd,253188,
"Facilities, Fleet & Decarbonisation",Regional Transport,Communities & Place,Bus Services Support Grant,Supplies & Services,Grants and Subscriptions,Grants Payable,,16/09/2022,11051622,0,198746.67,R,Stagecoach Services Ltd,218028,
"Facilities, Fleet & Decarbonisation",Regional Transport,Communities & Place,Bus Services Support Grant,Supplies & Services,Grants and Subscriptions,Grants Payable,,16/09/2022,11051623,0,2558.07,R,Thomas of Rhondda,297269,
"Facilities, Fleet & Decarbonisation",Regional Transport,Communities & Place,Bus Services Support Grant,Supplies & Services,Grants and Subscriptions,Grants Payable,,16/09/2022,11051616,0,119167.1,R,Cardiff Bus,297188,
"Facilities, Fleet & Decarbonisation",Regional Transport,Communities & Place,Bus Services Support Grant,Supplies & Services,Grants and Subscriptions,Grants Payable,,16/09/2022,11051617,0,19216.3,R,Edwards Coaches Ltd,290651,
"Facilities, Fleet & Decarbonisation",Regional Transport,Communities & Place,Bus Services Support Grant,Supplies & Services,Grants and Subscriptions,Grants Payable,,16/09/2022,11051618,0,835.92,R,Henley's Bus Service Ltd,274907,
"Facilities, Fleet & Decarbonisation",Regional Transport,Communities & Place,Bus Services Support Grant,Supplies & Services,Grants and Subscriptions,Grants Payable,,16/09/2022,11051619,0,74377.7,R,New Adventure Travel,295981,
Finance,Revenues Department,Resources,Charity Relief,Supplies & Services,Communications and Computing,Postages,,22/09/2022,11052479,0,36.2,R,Post Office Ltd,200206,
Schools Total,School Group 1 � Pupil Capacity 1-143,MCC Schools,Ysgol Gymraeg Y Ffin,Premises,Energy Costs,Gas.,,16/09/2022,11051501,0,31.08,R,TOTAL GAS & POWER LIMITED,2202690,
"Leisure, Youth & Outdoor Adventure",Leisure Services,MonLife Directorate,Chepstow Leisure Centre,Premises,Energy Costs,Gas.,,16/09/2022,11051476,0,1634.04,R,TOTAL GAS & POWER LIMITED,2202690,
Children Services,Children Services Teams,Social Care and Health,Family Support and Protection Team,Employees,Direct Employee Expenses,Agency Staff,,08/09/2022,11049674,10122834,970.2,R,NonStop Recruitment Ltd.,2201394,
"Policy, Scrutiny & Customer Service",Community Hubs,Chief Executive's Unit,Community Hub - Caldicot,Premises,Energy Costs,Gas.,,16/09/2022,11051523,0,24.36,R,TOTAL GAS & POWER LIMITED,2202690,
"Commercial, Corporate & landlord Services",Asset Management,Resources,St David�s Day Fund (Grant),Premises,Energy Costs,Gas.,,16/09/2022,11051522,0,10.54,R,TOTAL GAS & POWER LIMITED,2202690,
"Commercial, Corporate & landlord Services",Asset Management,Resources,Shared Accomodation,Premises,Energy Costs,Gas.,,16/09/2022,11051524,0,76.88,R,TOTAL GAS & POWER LIMITED,2202690,
"Policy, Scrutiny & Customer Service",Community Hubs,Chief Executive's Unit,Community Hub - Monmouth,Premises,Energy Costs,Gas.,,16/09/2022,11051506,0,172.57,R,TOTAL GAS & POWER LIMITED,2202690,
"Commercial, Corporate & landlord Services",Property Services & Facilities Management,Resources,Central Accommodation,Premises,Energy Costs,Gas.,,16/09/2022,11051564,0,259.09,R,British Gas Business,211102,
"Commercial, Corporate & landlord Services",Property Services & Facilities Management,Resources,Central Accommodation,Premises,Energy Costs,Gas.,,16/09/2022,11051505,0,231.57,R,TOTAL GAS & POWER LIMITED,2202690,
Schools Total,School Group 2 � Pupil Capacity 144-314,MCC Schools,Durand Primary School,Premises,Energy Costs,Gas.,,16/09/2022,11051451,0,34.04,R,TOTAL GAS & POWER LIMITED,2202690,
Schools Total,School Group 7 � Pupil Capacity 501-1800,MCC Schools,Monmouth Comprehensive,Premises,Energy Costs,Gas.,,16/09/2022,11051450,0,1938.81,R,TOTAL GAS & POWER LIMITED,2202690,
Neighbourhood Services,Waste and Street Services,Communities & Place,Refuse & Cleansing Operations,Premises,Energy Costs,Electricity.,,16/09/2022,11051406,0,410.86,R,EDF Energy,212738,
"Leisure, Youth & Outdoor Adventure",Youth & Education,MonLife Directorate,Gilwern,Premises,Energy Costs,Electricity.,,16/09/2022,11051405,0,60.36,R,EDF Energy,212738,
Children Services,Children Services Teams,Social Care and Health,Family Support and Protection Team,Third Party Payments,Third Party,Individual Needs,,08/09/2022,11048491,10124617,9849.56,R,Richmond Nursing Agency Ltd,2203303,
Children Services,Children Services Teams,Social Care and Health,Long Term Support Team,Third Party Payments,Third Party,Individual Needs,,08/09/2022,11048499,10125316,5609.58,R,Richmond Nursing Agency Ltd,2203303,
Children Services,Children Services Teams,Social Care and Health,Long Term Support Team,Third Party Payments,Third Party,Individual Needs,,08/09/2022,11048498,10125316,4403.47,R,Richmond Nursing Agency Ltd,2203303,
Neighbourhood Services,Highways,Communities & Place,Siding and Cleaning,Third Party Payments,Third Party,Hedge/Tree Cutting,,05/09/2022,11048312,818813,1275.04,R,Eco Vigour Ltd,299065,
Standards,Early Years,Children & Young People,Foundation of Training Grant,Supplies & Services,"Equipment, Furniture and Materials",Equipment Purchases,,03/10/2022,11059157,10126977,226,R,Community Playthings,270324,
Standards,Early Years,Children & Young People,Foundation of Training Grant,Supplies & Services,"Equipment, Furniture and Materials",Equipment Purchases,,03/10/2022,11059157,10126977,3060,R,Community Playthings,270324,
Standards,Early Years,Children & Young People,Foundation of Training Grant,Supplies & Services,"Equipment, Furniture and Materials",Equipment Purchases,,03/10/2022,11059157,10126977,1150,R,Community Playthings,270324,
Schools Total,SCHGRP3 � School Group 3 � Pupil Capacity 315-500,MCC Schools,Overmonnow Primary School,Employees,Direct Employee Expenses,Agency Staff,,26/09/2022,11053145,80085687,302.53,R,TeacherActive,297314,
"Commercial, Corporate & landlord Services",Property Services & Facilities Management,Resources,Gwent Police Collaboration,Premises,"Repairs, Alterations & Maintenance of Buildings",Building Improvements / Maintenance,,20/09/2022,11049909,760019738,264.61,R,EFS Systems (UK) Ltd,2200607,
"Commercial, Corporate & landlord Services",Property Services & Facilities Management,Resources,Gwent Police Collaboration,Premises,"Repairs, Alterations & Maintenance of Buildings",Building Improvements / Maintenance,,20/09/2022,11049912,760019821,200.18,R,EFS Systems (UK) Ltd,2200607,
Adult Services,Direct Care Residential,Social Care and Health,Mardy Park,Supplies & Services,"Equipment, Furniture and Materials",Provisions.,,29/09/2022,11052715,10123305,67.04,R,Total Produce (Hereford),237829,
Schools Total,School Group 2 � Pupil Capacity 144-314,MCC Schools,Osbaston CiW Primary School (VC),Supplies & Services,"Equipment, Furniture and Materials",Cleaning Materials.,,20/09/2022,11051326,80088173,240.96,R,Newhall Janitorial Ltd,200912,
Finance & Business Devlopment,Learning,MonLife Directorate,Learning,Supplies & Services,"Equipment, Furniture and Materials",Equipment Purchases,,20/09/2022,11050566,0,-9.64,R,RM Educational Resources Ltd,213173,
Finance & Business Devlopment,Learning,MonLife Directorate,Learning,Supplies & Services,"Equipment, Furniture and Materials",Equipment Purchases,,20/09/2022,11050567,0,-8,R,RM Educational Resources Ltd,213173,
Schools Total,School Group 2 � Pupil Capacity 144-314,MCC Schools,Llanfoist Fawr Primary School,Employees,Direct Employee Expenses,Agency Staff,,16/09/2022,11051204,0,107.45,R,New Directions Education Ltd,233905,
Schools Total,School Group 2 � Pupil Capacity 144-314,MCC Schools,Llanfoist Fawr Primary School,Employees,Direct Employee Expenses,Agency Staff,,16/09/2022,11051205,0,107.45,R,New Directions Education Ltd,233905,
Schools Total,School Group 2 � Pupil Capacity 144-314,MCC Schools,Llanfoist Fawr Primary School,Employees,Direct Employee Expenses,Agency Staff,,16/09/2022,11051206,0,107.45,R,New Directions Education Ltd,233905,
Schools Total,School Group 2 � Pupil Capacity 144-314,MCC Schools,Llanfoist Fawr Primary School,Employees,Direct Employee Expenses,Agency Staff,,16/09/2022,11051207,0,107.45,R,New Directions Education Ltd,233905,
Schools Total,School Group 2 � Pupil Capacity 144-314,MCC Schools,Dewstow Primary School,Employees,Direct Employee Expenses,Agency Staff,,20/09/2022,11049960,80085518,209.07,R,Teaching 4 Wales Ltd,267637,
Schools Total,School Group 7 � Pupil Capacity 501-1800,MCC Schools,Monmouth Comprehensive,Third Party Payments,Third Party,School Meal Service,,26/09/2022,11051282,0,129.56,R,REDACTED DATA,297160,
Standards,Early Years,Children & Young People,Flying Start Grant,Supplies & Services,"Equipment, Furniture and Materials",Equipment Purchases,,05/09/2022,11048883,10125956,428.01,R,Hope Education Ltd,200969,
Standards,Early Years,Children & Young People,Flying Start Grant,Supplies & Services,"Equipment, Furniture and Materials",Equipment Purchases,,05/09/2022,11048884,10125956,35.58,R,Hope Education Ltd,200969,
Standards,Early Years,Children & Young People,Flying Start Grant,Supplies & Services,"Equipment, Furniture and Materials",Equipment Purchases,,05/09/2022,11048899,10126436,9.38,R,Hope Education Ltd,200969,
Standards,Early Years,Children & Young People,Flying Start Grant,Supplies & Services,"Equipment, Furniture and Materials",Equipment Purchases,,05/09/2022,11048899,10126436,3.92,R,Hope Education Ltd,200969,
"Policy, Scrutiny & Customer Service",Ukraine,Chief Executive's Unit,Ukrainian Welcome Centre,Supplies & Services,Services,Professional And Specialist Fees,,15/09/2022,11050610,10126675,9170.78,R,Cardiff City Council,255029,
"Policy, Scrutiny & Customer Service",Ukraine,Chief Executive's Unit,Ukrainian Welcome Centre,Supplies & Services,Services,Professional And Specialist Fees,,15/09/2022,11050611,10126676,1990,R,Clean and Fresh Launderette and Dry Cleaners,2201872,
"Policy, Scrutiny & Customer Service",Ukraine,Chief Executive's Unit,Ukrainian Welcome Centre,Supplies & Services,Services,Professional And Specialist Fees,,15/09/2022,11050612,10126677,1870,R,Clean and Fresh Launderette and Dry Cleaners,2201872,
Community Care,Community Care Team,Social Care and Health,Abergavenny Adult Team,Third Party Payments,Third Party,Personal Care.,,20/09/2022,318129,0,49.5,R,REDACTED PERSONAL DATA,2200546,
Community Care,Community Care Team,Social Care and Health,Abergavenny Adult Team,Third Party Payments,Third Party,Personal Care.,,20/09/2022,318129,0,49.5,R,REDACTED PERSONAL DATA,2200546,
Schools Total,School Group 2 � Pupil Capacity 144-314,MCC Schools,Thornwell Primary School,Supplies & Services,"Equipment, Furniture and Materials",Provisions.,,15/09/2022,11050735,80088043,59.77,R,Castell Howell Foods Ltd,261117,
Schools Total,School Group 2 � Pupil Capacity 144-314,MCC Schools,Thornwell Primary School,Supplies & Services,"Equipment, Furniture and Materials",Provisions.,,15/09/2022,11050735,80088043,-5,R,Castell Howell Foods Ltd,261117,
Schools Total,School Group 2 � Pupil Capacity 144-314,MCC Schools,Thornwell Primary School,Supplies & Services,"Equipment, Furniture and Materials",Provisions.,,15/09/2022,11050735,80088043,5,R,Castell Howell Foods Ltd,261117,
"Policy, Scrutiny & Customer Service",Ukraine,Chief Executive's Unit,Ukrainian Welcome Centre,Supplies & Services,Services,Professional And Specialist Fees,,15/09/2022,11050613,10126678,1940,R,Clean and Fresh Launderette and Dry Cleaners,2201872,
"Policy, Scrutiny & Customer Service",Ukraine,Chief Executive's Unit,Ukrainian Welcome Centre,Supplies & Services,Services,Professional And Specialist Fees,,15/09/2022,11050614,10126679,2030,R,Clean and Fresh Launderette and Dry Cleaners,2201872,
Children Services,Children Services Other,Social Care and Health,Face to Face Counselling,Supplies & Services,Services,Professional And Specialist Fees,,15/09/2022,11050705,10126660,110,R,Art Therapy for Everyone,2204214,
"Commercial, Corporate & landlord Services",Property Services & Facilities Management,Resources,Reactive Maintenance,Premises,"Repairs, Alterations & Maintenance of Buildings",Building Improvements / Maintenance,,22/09/2022,11052541,90062961,593.7,R,Springvale Wproofing Ltd,209276,
"Commercial, Corporate & landlord Services",Property Services & Facilities Management,Resources,Reactive Maintenance,Premises,"Repairs, Alterations & Maintenance of Buildings",Building Improvements / Maintenance,,22/09/2022,11052542,90062538,304.5,R,Springvale Wproofing Ltd,209276,
"Commercial, Corporate & landlord Services",Property Services & Facilities Management,Resources,Reactive Maintenance,Premises,"Repairs, Alterations & Maintenance of Buildings",Building Improvements / Maintenance,,22/09/2022,11052543,90062684,337.56,R,Springvale Wproofing Ltd,209276,
Schools Total,SCHGRP3 � School Group 3 � Pupil Capacity 315-500,MCC Schools,Deri View Primary School,Supplies & Services,Grants and Subscriptions,Subscriptions,,22/09/2022,11052365,80088367,-12.65,R,Association of Teachers of Mathematics,2203528,
Schools Total,SCHGRP3 � School Group 3 � Pupil Capacity 315-500,MCC Schools,Deri View Primary School,Supplies & Services,Grants and Subscriptions,Subscriptions,,22/09/2022,11052365,80088367,77.47,R,Association of Teachers of Mathematics,2203528,
Schools Total,SCHGRP3 � School Group 3 � Pupil Capacity 315-500,MCC Schools,Deri View Primary School,Supplies & Services,Grants and Subscriptions,Subscriptions,,22/09/2022,11052365,80088367,12.65,R,Association of Teachers of Mathematics,2203528,
"Facilities, Fleet & Decarbonisation",Regional Transport,Communities & Place,Bus Services Support Grant,Supplies & Services,Grants and Subscriptions,Grants Payable,,16/09/2022,11051608,0,142.69,R,REDACTED PERSONAL DATA,297257,
"Facilities, Fleet & Decarbonisation",Regional Transport,Communities & Place,Bus Services Support Grant,Supplies & Services,Grants and Subscriptions,Grants Payable,,16/09/2022,11051609,0,113.77,R,East Vale Community Transport,295244,
"Facilities, Fleet & Decarbonisation",Regional Transport,Communities & Place,Bus Services Support Grant,Supplies & Services,Grants and Subscriptions,Grants Payable,,16/09/2022,11051610,0,1564.87,R,Newport City Council,211127,
"Facilities, Fleet & Decarbonisation",Regional Transport,Communities & Place,Bus Services Support Grant,Supplies & Services,Grants and Subscriptions,Grants Payable,,16/09/2022,11051611,0,1963.92,R,Torfaen Community Transport,297255,
"Commercial, Corporate & landlord Services",Property Services & Facilities Management,Resources,External Clients,Premises,"Repairs, Alterations & Maintenance of Buildings",Building Improvements / Maintenance,,13/09/2022,11050578,90065397,195,R,Hightech Water Services,2200055,
"Commercial, Corporate & landlord Services",Property Services & Facilities Management,Resources,External Clients,Premises,"Repairs, Alterations & Maintenance of Buildings",Building Improvements / Maintenance,,13/09/2022,11050580,90065474,250,R,Rockfield M & E Ltd,2200141,
"Facilities, Fleet & Decarbonisation",Regional Transport,Communities & Place,Bus Services Support Grant,Supplies & Services,Grants and Subscriptions,Grants Payable,,16/09/2022,11051612,0,2825.05,R,Travol Community Transport,295246,
"Facilities, Fleet & Decarbonisation",Regional Transport,Communities & Place,Bus Services Support Grant,Supplies & Services,Grants and Subscriptions,Grants Payable,,16/09/2022,11051613,0,2163.65,R,Vale Of Glamorgan Council,284254,
"Facilities, Fleet & Decarbonisation",Regional Transport,Communities & Place,Bus Services Support Grant,Supplies & Services,Grants and Subscriptions,Grants Payable,,16/09/2022,11051614,0,779.62,R,Voluntary Emergency Service Transport,295247,
"Commercial, Corporate & landlord Services",Property Services & Facilities Management,Resources,Reactive Maintenance,Premises,"Repairs, Alterations & Maintenance of Buildings",Building Improvements / Maintenance,,22/09/2022,11052546,90062693,476.29,R,Springvale Wproofing Ltd,209276,
Schools Total,School Group 2 � Pupil Capacity 144-314,MCC Schools,Cantref Primary School,Supplies & Services,Grants and Subscriptions,Subscriptions,,13/09/2022,11050362,80088192,50,R,Mathsframe Ltd,299297,
Community Care,Community Care Team,Social Care and Health,Monmouth Adult Team,Third Party Payments,Third Party,Residential.,,06/09/2022,318076,0,2900,R,Parade Residential Home,225421,
"Enterprise, Housing & Community Animation",General Fund Housing,Communities & Place,Homelessness,Supplies & Services,Services,Homelessness Bed & Breakfast Accomodation,,09/09/2022,11049356,10123226,677.5,R,First Motorway Services Ltd,2203388,
"Enterprise, Housing & Community Animation",General Fund Housing,Communities & Place,Homelessness,Supplies & Services,Services,Homelessness Bed & Breakfast Accomodation,,09/09/2022,11049357,10123226,519.17,R,First Motorway Services Ltd,2203388,
"Enterprise, Housing & Community Animation",General Fund Housing,Communities & Place,Homelessness,Supplies & Services,Services,Homelessness Bed & Breakfast Accomodation,,09/09/2022,11049358,10123226,567.5,R,First Motorway Services Ltd,2203388,
"Enterprise, Housing & Community Animation",General Fund Housing,Communities & Place,Homelessness,Supplies & Services,Services,Homelessness Bed & Breakfast Accomodation,,09/09/2022,11049359,10123226,527.5,R,First Motorway Services Ltd,2203388,
"Enterprise, Housing & Community Animation",General Fund Housing,Communities & Place,Homelessness,Supplies & Services,Services,Homelessness Bed & Breakfast Accomodation,,09/09/2022,11049360,10123226,467.5,R,First Motorway Services Ltd,2203388,
"Enterprise, Housing & Community Animation",General Fund Housing,Communities & Place,Homelessness,Supplies & Services,Services,Homelessness Bed & Breakfast Accomodation,,09/09/2022,11049361,10123226,289.17,R,First Motorway Services Ltd,2203388,
"Enterprise, Housing & Community Animation",General Fund Housing,Communities & Place,Homelessness,Supplies & Services,Services,Homelessness Bed & Breakfast Accomodation,,09/09/2022,11049362,10123226,559.17,R,First Motorway Services Ltd,2203388,
"Commercial, Corporate & landlord Services",Property Services & Facilities Management,Resources,Reactive Maintenance,Premises,"Repairs, Alterations & Maintenance of Buildings",Building Improvements / Maintenance,,22/09/2022,11052580,90063515,900,R,Ambassador Fire & Security LTD,295878,
